Workbook

Sheet Preisbenchmarking Daten
A1: Kosten- gruppen neu | B1: Bezeichnung der Kostengruppe neu | C1: Nummerierung DIN 276 3 Ziffern | D1: Anlagenklasse | E1: Nummerierung 2-stelliger Code Ziffer für Anlagen-klasse | F1: Anlage System) | G1: Nummerierung 2-stelliger Code Ziffer für Anlage | H1: Bauteil Komponente) | I1: Nummerierung 3-stelliger Code Ziffer für Bauteil | J1: Art | K1: Nummerierung 2-stelliger Code Ziffer für Art | L1: Bandbreite | M1: Nummerierung 2-stelliger Code Ziffer für Bandbreite | O1: Nummerierung Ergebnis | P1: Bemerkung | Q1: Abweichung | R1: Mittelwert über alle Mittelwerte | S1: Min über alle Mittelwerte | T1: Max über alle Mittelwerte | U1: Mittelwert über alle Mittelwerte von 2020 auf Mai 2023 indiziert
A2: 411 | B2: Abwasseranlagen | C2: 411 | D2: Abwasserleitungen | E2: 01 | F2: Abwasserleitung | G2: 01 | H2: Kontroll-, Reinigungs- und Sammelschächte | I2: 171 | K2: 00 | M2: 00 | N2: Anzahl | O2: 411.01.01.171.00.00 | Q2: 2.166521106 | R2: 15.35819825 | S2: 8.5875 | T2: 18.605 | U2: =R2*(((160.2-117.2)/100)+1) -> 21.9622235
A3: 411 | B3: Abwasseranlagen | C3: 411 | D3: Abläufe | E3: 02 | F3: Abläufe | G3: 01 | H3: Bodenrinnen innen | I3: 120 | K3: 00 | M3: 00 | N3: Laufmeter | O3: 411.02.01.120.00.00 | Q3: 1.147322515 | R3: 3.174223398 | S3: 2.956447739 | T3: 3.391999057 | U3: =R3*(((160.2-117.2)/100)+1) -> 4.539139459
A4: 411 | B4: Abwasseranlagen | C4: 411 | D4: Abläufe | E4: 02 | F4: Abläufe | G4: 01 | H4: Bodenrinnen außen | I4: 119 | K4: 00 | M4: 00 | N4: Laufmeter | O4: 411.02.01.119.00.00 | Q4: 1.087128461 | R4: 3.220036823 | S4: 3.085614406 | T4: 3.354459241 | U4: =R4*(((160.2-117.2)/100)+1) -> 4.604652658
A5: 411 | B5: Abwasseranlagen | C5: 411 | D5: Abläufe | E5: 02 | F5: Abläufe | G5: 01 | H5: Bodeneinläufe | I5: 118 | K5: 00 | M5: 00 | N5: Anzahl | O5: 411.02.01.118.00.00 | Q5: 1.226966806 | R5: 5.490207134 | S5: 4.77 | T5: 5.852631667 | U5: =R5*(((160.2-117.2)/100)+1) -> 7.850996202
A6: 411 | B6: Abwasseranlagen | C6: 411 | D6: Abläufe | E6: 02 | F6: Abläufe | G6: 01 | H6: Straßeneinlaufkästen außen | I6: 206 | K6: 00 | M6: 00 | N6: Anzahl | O6: 411.02.01.206.00.00 | Q6: 1.048942495 | R6: 14.47464797 | S6: 14.12889625 | T6: 14.82039968 | U6: =R6*(((160.2-117.2)/100)+1) -> 20.69874659
A7: 411 | B7: Abwasseranlagen | C7: 411 | D7: Abläufe | E7: 02 | F7: Abläufe | G7: 01 | H7: Dachrinnen | I7: 126 | K7: 00 | M7: 00 | N7: Laufmeter | O7: 411.02.01.126.00.00 | Q7: 2.21023635 | R7: 5.943244333 | S7: 3.702683344 | T7: 8.183805322 | U7: =R7*(((160.2-117.2)/100)+1) -> 8.498839396
A8: 411 | B8: Abwasseranlagen | C8: 411 | D8: Abläufe | E8: 02 | F8: Abläufe | G8: 01 | H8: Dacheinläufe | I8: 125 | K8: 00 | M8: 00 | N8: Anzahl | O8: 411.02.01.125.00.00 | Q8: 1.514019423 | R8: 6.968765704 | S8: 5.71987378 | T8: 8.66 | U8: =R8*(((160.2-117.2)/100)+1) -> 9.965334957
A9: 411 | B9: Abwasseranlagen | C9: 411 | D9: Abwassersammelanlagen | E9: 03 | F9: Abwassersammelanlage | G9: 01 | H9: Sickerschächte | I9: 201 | K9: 00 | M9: 00 | N9: Anzahl | O9: 411.03.01.201.00.00 | Q9: 1.081462101 | R9: 32.3910394 | S9: 31.12335255 | T9: 33.65872625 | U9: =R9*(((160.2-117.2)/100)+1) -> 46.31918634
A10: 411 | B10: Abwasseranlagen | C10: 411 | D10: Abwassersammelanlagen | E10: 03 | F10: Abwassersammelanlage | G10: 01 | H10: Rigolen | I10: 191 | K10: 00 | M10: 00 | N10: Anzahl | O10: 411.03.01.191.00.00 | Q10: 1.116343277 | R10: 58.28675961 | S10: 55.08251922 | T10: 61.491 | U10: =R10*(((160.2-117.2)/100)+1) -> 83.35006624
A11: 411 | B11: Abwasseranlagen | C11: 411 | D11: Abwasserbehandlungsanlagen | E11: 04 | F11: Leichtflüssigkeitsabscheider | G11: 01 | I11: 000 | K11: 00 | L11: Nenngröße <=2 | M11: 01 | N11: Anzahl | O11: 411.04.01.000.00.01 | P11: ohne Entleerung und Entsorgung | Q11: 1.923834072 | R11: 207.9735684 | S11: 128.7325158 | T11: 247.66 | U11: =R11*(((160.2-117.2)/100)+1) -> 297.4022029
A12: 411 | B12: Abwasseranlagen | C12: 411 | D12: Abwasserbehandlungsanlagen | E12: 04 | F12: Leichtflüssigkeitsabscheider | G12: 01 | I12: 000 | K12: 00 | L12: Nenngröße > 2 bis 5 | M12: 02 | N12: Anzahl | O12: 411.04.01.000.00.02 | P12: ohne Entleerung und Entsorgung | Q12: 1.03720756 | R12: 320.1867795 | S12: 314.338888 | T12: 326.0346711 | U12: =R12*(((160.2-117.2)/100)+1) -> 457.8670947
A13: 411 | B13: Abwasseranlagen | C13: 411 | D13: Abwasserbehandlungsanlagen | E13: 04 | F13: Fettabscheider | G13: 02 | I13: 000 | K13: 00 | L13: Nenngröße <= 5 | M13: 01 | N13: Anzahl | O13: 411.04.02.000.00.01 | P13: ohne Entleerung und Entsorgung | Q13: 1.775300971 | R13: 351.1840019 | S13: 251.0149397 | T13: 445.6270661 | U13: =R13*(((160.2-117.2)/100)+1) -> 502.1931228
A14: 411 | B14: Abwasseranlagen | C14: 411 | D14: Abwasserbehandlungsanlagen | E14: 04 | F14: Fettabscheider | G14: 02 | I14: 000 | K14: 00 | L14: Nenngröße > 5 bis 10 | M14: 02 | N14: Anzahl | O14: 411.04.02.000.00.02 | P14: ohne Entleerung und Entsorgung | Q14: 1.961093277 | R14: 378.6287557 | S14: 256.75 | T14: 503.5106988 | U14: =R14*(((160.2-117.2)/100)+1) -> 541.4391206
A15: 411 | B15: Abwasseranlagen | C15: 411 | D15: Abwasserbehandlungsanlagen | E15: 04 | F15: Fettabscheider | G15: 02 | I15: 000 | K15: 00 | L15: Nenngröße > 10 bis 15 | M15: 03 | N15: Anzahl | O15: 411.04.02.000.00.03 | P15: ohne Entleerung und Entsorgung | Q15: 1.124488194 | R15: 359.7700954 | S15: 338.6887218 | T15: 380.851469 | U15: =R15*(((160.2-117.2)/100)+1) -> 514.4712365
A16: 411 | B16: Abwasseranlagen | C16: 411 | D16: Abwasserbehandlungsanlagen | E16: 04 | F16: Stärkeabscheider | G16: 03 | I16: 000 | K16: 00 | L16: Nenngröße <=1 | M16: 01 | N16: Anzahl | O16: 411.04.03.000.00.01 | P16: ohne Entleerung und Entsorgung | Q16: 1.272799907 | R16: 170.914553 | S16: 150.4 | T16: 191.4291059 | U16: =R16*(((160.2-117.2)/100)+1) -> 244.4078107
A17: 411 | B17: Abwasseranlagen | C17: 411 | D17: Abwasserbehandlungsanlagen | E17: 04 | F17: Stärkeabscheider | G17: 03 | I17: 000 | K17: 00 | L17: Nenngröße > 1 bis 2 | M17: 02 | N17: Anzahl | O17: 411.04.03.000.00.02 | P17: ohne Entleerung und Entsorgung | Q17: 1.406081967 | R17: 192.8474696 | S17: 160.3 | T17: 225.3949393 | U17: =R17*(((160.2-117.2)/100)+1) -> 275.7718816
A18: 411 | B18: Abwasseranlagen | C18: 411 | D18: Abwasserbehandlungsanlagen | E18: 04 | F18: Stärkeabscheider | G18: 03 | I18: 000 | K18: 00 | L18: Nenngröße > 2 bis 5 | M18: 03 | N18: Anzahl | O18: 411.04.03.000.00.03 | P18: ohne Entleerung und Entsorgung | Q18: 1.712779741 | R18: 229.7724441 | S18: 169.4 | T18: 290.1448881 | U18: =R18*(((160.2-117.2)/100)+1) -> 328.574595
A19: 411 | B19: Abwasseranlagen | C19: 411 | D19: Hebeanlagen | E19: 05 | F19: Hebeanlage | G19: 01 | H19: Pumpen | I19: 012 | J19: fäkalienfrei; Einfachpumpe geschlossen | K19: 01 | L19: Fördermenge <= 10 m3/h | M19: 01 | N19: Anzahl | O19: 411.05.01.012.01.01 | Q19: 1.426011932 | R19: 44.84887449 | S19: 35.16099612 | T19: 50.14 | U19: =R19*(((160.2-117.2)/100)+1) -> 64.13389052
A20: 411 | B20: Abwasseranlagen | C20: 411 | D20: Hebeanlagen | E20: 05 | F20: Hebeanlage | G20: 01 | H20: Pumpen | I20: 012 | J20: fäkalienhaltig; Einfachpumpe geschlossen | K20: 02 | L20: Fördermenge <= 10 m3/h | M20: 01 | N20: Anzahl | O20: 411.05.01.012.02.01 | Q20: 1.287958098 | R20: 61.6531994 | S20: 54.59872639 | T20: 70.32087181 | U20: =R20*(((160.2-117.2)/100)+1) -> 88.16407514
A21: 411 | B21: Abwasseranlagen | C21: 411 | D21: Hebeanlagen | E21: 05 | F21: Hebeanlage | G21: 01 | H21: Pumpen | I21: 012 | J21: fäkalienfrei; Einfachpumpe geschlossen | K21: 01 | L21: Fördermenge > 10 bis 50 m3/h | M21: 02 | N21: Anzahl | O21: 411.05.01.012.01.02 | Q21: 1.354421363 | R21: 58.55264109 | S21: 47.90048418 | T21: 64.87743908 | U21: =R21*(((160.2-117.2)/100)+1) -> 83.73027675
A22: 411 | B22: Abwasseranlagen | C22: 411 | D22: Hebeanlagen | E22: 05 | F22: Hebeanlage | G22: 01 | H22: Pumpen | I22: 012 | J22: fäkalienhaltig; Einfachpumpe geschlossen | K22: 02 | L22: Fördermenge > 10 bis 50 m3/h | M22: 02 | N22: Anzahl | O22: 411.05.01.012.02.02 | Q22: 1.218955719 | R22: 85.5628909 | S22: 77.1199625 | T22: 94.0058193 | U22: =R22*(((160.2-117.2)/100)+1) -> 122.354934
A23: 411 | B23: Abwasseranlagen | C23: 411 | D23: Hebeanlagen | E23: 05 | F23: Hebeanlage | G23: 01 | H23: Pumpen | I23: 012 | J23: fäkalienfrei; Doppelpumpe geschlossen | K23: 03 | L23: Fördermenge <= 10 m3/h | M23: 01 | N23: Anzahl | O23: 411.05.01.012.03.01 | Q23: 1.50436942 | R23: 70.35059182 | S23: 56.18227986 | T23: 84.51890378 | U23: =R23*(((160.2-117.2)/100)+1) -> 100.6013463
A24: 411 | B24: Abwasseranlagen | C24: 411 | D24: Hebeanlagen | E24: 05 | F24: Hebeanlage | G24: 01 | H24: Pumpen | I24: 012 | J24: fäkalienhaltig; Doppelpumpe geschlossen | K24: 04 | L24: Fördermenge <= 10 m3/h | M24: 01 | N24: Anzahl | O24: 411.05.01.012.04.01 | Q24: 1.446219026 | R24: 90.48551098 | S24: 73.97989306 | T24: 106.9911289 | U24: =R24*(((160.2-117.2)/100)+1) -> 129.3942807
A25: 411 | B25: Abwasseranlagen | C25: 411 | D25: Hebeanlagen | E25: 05 | F25: Hebeanlage | G25: 01 | H25: Pumpen | I25: 012 | J25: fäkalienfrei; Doppelpumpe geschlossen | K25: 03 | L25: Fördermenge >10 bis 50 m3/h | M25: 02 | N25: Anzahl | O25: 411.05.01.012.03.02 | Q25: 1.408440856 | R25: 82.30907819 | S25: 68.35050817 | T25: 96.26764822 | U25: =R25*(((160.2-117.2)/100)+1) -> 117.7019818
A26: 411 | B26: Abwasseranlagen | C26: 411 | D26: Hebeanlagen | E26: 05 | F26: Hebeanlage | G26: 01 | H26: Pumpen | I26: 012 | J26: fäkalienhaltig; Doppelpumpe geschlossen | K26: 04 | L26: Fördermenge > 10 bis 50 m3/h | M26: 02 | N26: Anzahl | O26: 411.05.01.012.04.02 | Q26: 1.405945952 | R26: 123.4688207 | S26: 102.6364043 | T26: 144.3012371 | U26: =R26*(((160.2-117.2)/100)+1) -> 176.5604136
A27: 411 | B27: Abwasseranlagen | C27: 411 | D27: Hebeanlagen | E27: 05 | F27: Hebeanlage | G27: 01 | H27: Pumpen | I27: 012 | J27: fäkalienfrei; Doppelpumpe geschlossen | K27: 03 | L27: Fördermenge > 50 bis 150 m3/h | M27: 03 | N27: Anzahl | O27: 411.05.01.012.03.03 | Q27: 1.085202826 | R27: 131.4310172 | S27: 126.0606551 | T27: 136.8013792 | U27: =R27*(((160.2-117.2)/100)+1) -> 187.9463546
A28: 411 | B28: Abwasseranlagen | C28: 411 | D28: Hebeanlagen | E28: 05 | F28: Hebeanlage | G28: 01 | H28: Pumpen | I28: 012 | J28: fäkalienhaltig; Doppelpumpe geschlossen | K28: 04 | L28: Fördermenge > 50 bis 150 m3/h | M28: 03 | N28: Anzahl | O28: 411.05.01.012.04.03 | Q28: 1.141293699 | R28: 179.6380651 | S28: 167.784611 | T28: 191.4915192 | U28: =R28*(((160.2-117.2)/100)+1) -> 256.8824331
A29: 411 | B29: Abwasseranlagen | C29: 411 | D29: Hebeanlagen | E29: 05 | F29: Tauchpumpe | G29: 02 | I29: 000 | K29: 00 | L29: Fördermenge <= 10 m3/h | M29: 01 | N29: Anzahl | O29: 411.05.02.000.00.01 | P29: inkl. Pumpensumpf | Q29: 3.793548442 | R29: 65.1963715 | S29: 30.09319685 | T29: 114.16 | U29: =R29*(((160.2-117.2)/100)+1) -> 93.23081125
A30: 411 | B30: Abwasseranlagen | C30: 411 | D30: Hebeanlagen | E30: 05 | F30: Tauchpumpe | G30: 02 | I30: 000 | K30: 00 | L30: Fördermenge > 10 bis 50 m3/h | M30: 02 | N30: Anzahl | O30: 411.05.02.000.00.02 | P30: inkl. Pumpensumpf | Q30: 1.441149699 | R30: 50.91381008 | S30: 41.71297655 | T30: 60.1146436 | U30: =R30*(((160.2-117.2)/100)+1) -> 72.80674841
A31: 412 | B31: Wasseranlagen | C31: 412 | D31: Wassergewinnungsanlagen | E31: 01 | F31: Brunnenanlage | G31: 01 | H31: Pumpen | I31: 012 | K31: 00 | L31: Fördermenge <= 10 m3/h | M31: 01 | N31: Anzahl | O31: 412.01.01.012.00.01 | P31: inkl. Filter und Pumpen | Q31: 1.036327121 | R31: 110.6381247 | S31: 108.6643924 | T31: 112.611857 | U31: =R31*(((160.2-117.2)/100)+1) -> 158.2125183
A32: 412 | B32: Wasseranlagen | C32: 412 | D32: Wassergewinnungsanlagen | E32: 01 | F32: Brunnenanlage | G32: 01 | H32: Pumpen | I32: 012 | K32: 00 | L32: Fördermenge > 10 bis 50 m3/h | M32: 02 | N32: Anzahl | O32: 412.01.01.012.00.02 | P32: inkl. Filter und Pumpen | Q32: 1.228678862 | R32: 166.039865 | S32: 149.0029523 | T32: 183.0767778 | U32: =R32*(((160.2-117.2)/100)+1) -> 237.437007
A33: 412 | B33: Wasseranlagen | C33: 412 | D33: Wassergewinnungsanlagen | E33: 01 | F33: Brunnenanlage | G33: 01 | H33: Pumpen | I33: 012 | K33: 00 | L33: Fördermenge > 50 bis 150 m3/h | M33: 03 | N33: Anzahl | O33: 412.01.01.012.00.03 | P33: inkl. Filter und Pumpen | Q33: 1.482376664 | R33: 288.434618 | S33: 232.38586 | T33: 344.483376 | U33: =R33*(((160.2-117.2)/100)+1) -> 412.4615038
A34: 412 | B34: Wasseranlagen | C34: 412 | D34: Wassergewinnungsanlagen | E34: 01 | F34: Brunnenanlage | G34: 01 | H34: Pumpen | I34: 012 | K34: 00 | L34: Fördermenge > 150 bis 250 m3/h | M34: 04 | N34: Anzahl | O34: 412.01.01.012.00.04 | P34: inkl. Filter und Pumpen | Q34: 1.9881115 | R34: 445.1124455 | S34: 297.9222466 | T34: 592.3026444 | U34: =R34*(((160.2-117.2)/100)+1) -> 636.5107971
A35: 412 | B35: Wasseranlagen | C35: 412 | D35: Wassergewinnungsanlagen | E35: 01 | F35: Regenwassernutzungsanlage | G35: 02 | I35: 000 | K35: 00 | L35: Speichervolumen <=10 m3 | M35: 01 | N35: Anzahl | O35: 412.01.02.000.00.01 | P35: inkl. Filter und Pumpen | Q35: 1.641882047 | R35: 96.44133614 | S35: 78.50237244 | T35: 128.891636 | U35: =R35*(((160.2-117.2)/100)+1) -> 137.9111107
A36: 412 | B36: Wasseranlagen | C36: 412 | D36: Wassergewinnungsanlagen | E36: 01 | F36: Regenwassernutzungsanlage | G36: 02 | I36: 000 | K36: 00 | L36: Speichervolumen > 10 bis 50 m3 | M36: 02 | N36: Anzahl | O36: 412.01.02.000.00.02 | P36: inkl. Filter und Pumpen | Q36: 1.260037287 | R36: 172.3711032 | S36: 152.5382826 | T36: 192.2039239 | U36: =R36*(((160.2-117.2)/100)+1) -> 246.4906776
A37: 412 | B37: Wasseranlagen | C37: 412 | D37: Wassergewinnungsanlagen | E37: 01 | F37: Regenwassernutzungsanlage | G37: 02 | I37: 000 | K37: 00 | L37: Speichervolumen > 50 bis 100 m3 | M37: 03 | N37: Anzahl | O37: 412.01.02.000.00.03 | P37: inkl. Filter und Pumpen | Q37: 1.237513052 | R37: 260.894101 | S37: 233.2000707 | T37: 288.5881312 | U37: =R37*(((160.2-117.2)/100)+1) -> 373.0785644
A38: 412 | B38: Wasseranlagen | C38: 412 | D38: Wassergewinnungsanlagen | E38: 01 | F38: Flusswasseranlage | G38: 03 | I38: 000 | K38: 00 | L38: Fördermenge <= 10 m3/h | M38: 01 | N38: Anzahl | O38: 412.01.03.000.00.01 | P38: inkl. Filter und Pumpen | Q38: 1.683250916 | R38: 127.8936117 | S38: 83.10555406 | T38: 139.8875 | U38: =R38*(((160.2-117.2)/100)+1) -> 182.8878647
A39: 412 | B39: Wasseranlagen | C39: 412 | D39: Wassergewinnungsanlagen | E39: 01 | F39: Flusswasseranlage | G39: 03 | I39: 000 | K39: 00 | L39: Fördermenge > 10 bis 50 m3/h | M39: 02 | N39: Anzahl | O39: 412.01.03.000.00.02 | P39: inkl. Filter und Pumpen | Q39: 2.159483147 | R39: 178.8030849 | S39: 106.1422963 | T39: 229.2125 | U39: =R39*(((160.2-117.2)/100)+1) -> 255.6884113
A40: 412 | B40: Wasseranlagen | C40: 412 | D40: Wassergewinnungsanlagen | E40: 01 | F40: Flusswasseranlage | G40: 03 | I40: 000 | K40: 00 | L40: Fördermenge > 50 bis 150 m3/h | M40: 03 | N40: Anzahl | O40: 412.01.03.000.00.03 | P40: inkl. Filter und Pumpen | Q40: 2.877665773 | R40: 246.359558 | S40: 135.1625 | T40: 388.9525 | U40: =R40*(((160.2-117.2)/100)+1) -> 352.294168
A41: 412 | B41: Wasseranlagen | C41: 412 | D41: Wassergewinnungsanlagen | E41: 01 | F41: Flusswasseranlage | G41: 03 | I41: 000 | K41: 00 | L41: Fördermenge > 150 bis 250 m3/h | M41: 04 | N41: Anzahl | O41: 412.01.03.000.00.04 | P41: inkl. Filter und Pumpen | Q41: 3.034805164 | R41: 337.7780312 | S41: 163.1694535 | T41: 495.1875 | U41: =R41*(((160.2-117.2)/100)+1) -> 483.0225847
A42: 412 | B42: Wasseranlagen | C42: 412 | D42: Aufbereitungs- und Druckerhöhungsanlagen | E42: 02 | F42: Wasseraufbereitungsanlage (Enthärtung) | G42: 01 | I42: 000 | J42: einfach | K42: 01 | L42: Anschlussnennweite <= DN50 | M42: 01 | N42: Anzahl | O42: 412.02.01.000.01.01 | P42: ohne Wasserchemie | Q42: 1.736603583 | R42: 282.5094181 | S42: 206.4671843 | T42: 358.5516519 | U42: =R42*(((160.2-117.2)/100)+1) -> 403.9884678
A43: 412 | B43: Wasseranlagen | C43: 412 | D43: Aufbereitungs- und Druckerhöhungsanlagen | E43: 02 | F43: Wasseraufbereitungsanlage (Enthärtung) | G43: 01 | I43: 000 | J43: einfach | K43: 01 | L43: Anschlussnennweite > DN50 bis DN100 | M43: 02 | N43: Anzahl | O43: 412.02.01.000.01.02 | P43: ohne Wasserchemie | Q43: 1.222215282 | R43: 372.1006435 | S43: 334.891625 | T43: 409.309662 | U43: =R43*(((160.2-117.2)/100)+1) -> 532.1039202
A44: 412 | B44: Wasseranlagen | C44: 412 | D44: Aufbereitungs- und Druckerhöhungsanlagen | E44: 02 | F44: Wasseraufbereitungsanlage (Enthärtung) | G44: 01 | I44: 000 | J44: doppelt | K44: 02 | L44: Anschlussnennweite <= DN50 | M44: 01 | N44: Anzahl | O44: 412.02.01.000.02.01 | P44: ohne Wasserchemie | Q44: 1.255087363 | R44: 298.7427162 | S44: 264.9500157 | T44: 332.5354167 | U44: =R44*(((160.2-117.2)/100)+1) -> 427.2020842
A45: 412 | B45: Wasseranlagen | C45: 412 | D45: Aufbereitungs- und Druckerhöhungsanlagen | E45: 02 | F45: Wasseraufbereitungsanlage (Enthärtung) | G45: 01 | I45: 000 | J45: doppelt | K45: 02 | L45: Anschlussnennweite > DN50 bis DN100 | M45: 02 | N45: Anzahl | O45: 412.02.01.000.02.02 | P45: ohne Wasserchemie | Q45: 1.303031852 | R45: 387.1800327 | S45: 336.2350654 | T45: 438.125 | U45: =R45*(((160.2-117.2)/100)+1) -> 553.6674468
A46: 412 | B46: Wasseranlagen | C46: 412 | D46: Aufbereitungs- und Druckerhöhungsanlagen | E46: 02 | F46: Wasseraufbereitungsanlage (Dosierung) | G46: 02 | I46: 000 | K46: 00 | M46: 00 | N46: Anzahl | O46: 412.02.02.000.00.00 | P46: ohne Wasserchemie | Q46: 1.590992678 | R46: 277.9811481 | S46: 214.5750164 | T46: 341.3872799 | U46: =R46*(((160.2-117.2)/100)+1) -> 397.5130418
A47: 412 | B47: Wasseranlagen | C47: 412 | D47: Aufbereitungs- und Druckerhöhungsanlagen | E47: 02 | F47: Wasseraufbereitungsanlage (Umkehrosmose) | G47: 03 | I47: 000 | K47: 00 | L47: Permeatleistung <= 1 m3/h | M47: 01 | N47: Anzahl | O47: 412.02.03.000.00.01 | P47: ohne Wasserchemie | Q47: 1.238927673 | R47: 339.5523432 | S47: 297.1682755 | T47: 368.17 | U47: =R47*(((160.2-117.2)/100)+1) -> 485.5598508
A48: 412 | B48: Wasseranlagen | C48: 412 | D48: Aufbereitungs- und Druckerhöhungsanlagen | E48: 02 | F48: Wasseraufbereitungsanlage (Umkehrosmose) | G48: 03 | I48: 000 | K48: 00 | L48: Permeatleistung > 1 m3/h bis 5 m3/h | M48: 02 | N48: Anzahl | O48: 412.02.03.000.00.02 | P48: ohne Wasserchemie | Q48: 1.202292491 | R48: 391.3955973 | S48: 355.4437922 | T48: 427.3474023 | U48: =R48*(((160.2-117.2)/100)+1) -> 559.6957041
A49: 412 | B49: Wasseranlagen | C49: 412 | D49: Aufbereitungs- und Druckerhöhungsanlagen | E49: 02 | F49: Enteisenungs-/ Entmanganungsanlage | G49: 04 | I49: 000 | K49: 00 | L49: Durchflussleistung <= 1 m3/h | M49: 01 | N49: Anzahl | O49: 412.02.04.000.00.01 | P49: ohne Wasserchemie | Q49: 1.736371655 | R49: 253.6053958 | S49: 189.9075 | T49: 329.75 | U49: =R49*(((160.2-117.2)/100)+1) -> 362.6557161
A50: 412 | B50: Wasseranlagen | C50: 412 | D50: Aufbereitungs- und Druckerhöhungsanlagen | E50: 02 | F50: Enteisenungs-/ Entmanganungsanlage | G50: 04 | I50: 000 | K50: 00 | L50: Durchflussleistung > 1 m3/h bis 5 m3/h | M50: 02 | N50: Anzahl | O50: 412.02.04.000.00.02 | P50: ohne Wasserchemie | Q50: 1.411058601 | R50: 366.4970506 | S50: 324.985 | T50: 458.5728796 | U50: =R50*(((160.2-117.2)/100)+1) -> 524.0907824
A51: 412 | B51: Wasseranlagen | C51: 412 | D51: Aufbereitungs- und Druckerhöhungsanlagen | E51: 02 | F51: Druckerhöhungsanlage (nicht Löschwasser) | G51: 05 | H51: Pumpen | I51: 012 | K51: 00 | L51: Fördermenge <= 50 m3/h | M51: 01 | N51: Anzahl | O51: 412.02.05.012.00.01 | P51: ohne Wasserchemie | Q51: 1.610289355 | R51: 87.58725623 | S51: 69.7 | T51: 112.2371681 | U51: =R51*(((160.2-117.2)/100)+1) -> 125.2497764
A52: 412 | B52: Wasseranlagen | C52: 412 | D52: Aufbereitungs- und Druckerhöhungsanlagen | E52: 02 | F52: Druckerhöhungsanlage (nicht Löschwasser) | G52: 05 | H52: Pumpen | I52: 012 | K52: 00 | L52: Fördermenge > 50 bis 150 m3/h | M52: 02 | N52: Anzahl | O52: 412.02.05.012.00.02 | P52: ohne Wasserchemie | Q52: 1.095944998 | R52: 110.6450322 | S52: 105.5800914 | T52: 115.7099731 | U52: =R52*(((160.2-117.2)/100)+1) -> 158.2223961
A53: 412 | B53: Wasseranlagen | C53: 412 | D53: Aufbereitungs- und Druckerhöhungsanlagen | E53: 02 | F53: Druckerhöhungsanlage (nicht Löschwasser) | G53: 05 | H53: Pumpen | I53: 012 | K53: 00 | L53: Fördermenge > 150 bis 250 m3/h | M53: 03 | N53: Anzahl | O53: 412.02.05.012.00.03 | P53: ohne Wasserchemie | Q53: 1.026427942 | R53: 151.4097749 | S53: 149.4351432 | T53: 153.3844066 | U53: =R53*(((160.2-117.2)/100)+1) -> 216.5159781
A54: 412 | B54: Wasseranlagen | C54: 412 | D54: Aufbereitungs- und Druckerhöhungsanlagen | E54: 02 | F54: Druckerhöhungsanlage (nicht Löschwasser) | G54: 05 | H54: Pumpen | I54: 012 | K54: 00 | L54: Fördermenge > 250 bis 500 m3/h | M54: 04 | N54: Anzahl | O54: 412.02.05.012.00.04 | P54: ohne Wasserchemie | Q54: 1.000990974 | R54: 190.2433456 | S54: 190.1491291 | T54: 190.337562 | U54: =R54*(((160.2-117.2)/100)+1) -> 272.0479842
A55: 412 | B55: Wasseranlagen | C55: 412 | D55: Aufbereitungs- und Druckerhöhungsanlagen | E55: 02 | F55: Druckerhöhungsanlage (nicht Löschwasser) | G55: 05 | H55: Pumpen | I55: 012 | K55: 00 | L55: Fördermenge > 500 bis 1000 m3/h | M55: 05 | N55: Anzahl | O55: 412.02.05.012.00.05 | P55: ohne Wasserchemie | Q55: 1.081838307 | R55: 256.1847619 | S55: 246.1139859 | T55: 266.2555379 | U55: =R55*(((160.2-117.2)/100)+1) -> 366.3442095
A56: 412 | B56: Wasseranlagen | C56: 412 | D56: Rohrleitungen | E56: 03 | F56: Rohrleitung | G56: 01 | I56: 000 | K56: 00 | M56: 00 | N56: Anzahl | O56: 412.03.01.000.00.00 | P56: inkl. Rohrnetz und Absperr-, Entleerungs- und Entnahmearmaturen, Druckminderung | Q56: 3.130833533 | R56: 58.27146703 | S56: 28.21293405 | T56: 88.33 | U56: =R56*(((160.2-117.2)/100)+1) -> 83.32819785
A57: 412 | B57: Wasseranlagen | C57: 412 | D57: Rohrleitungen | E57: 03 | F57: Rohrleitung | G57: 01 | I57: 000 | J57: Anzahl Hygienespüleinrichtungen | K57: 01 | M57: 00 | N57: Anzahl | O57: 412.03.01.000.01.00 | P57: inkl. Rohrnetz und Absperr-, Entleerungs- und Entnahmearmaturen, Druckminderung | Q57: 1.650590601 | R57: 50.28217951 | S57: 37.94035901 | T57: 62.624 | U57: =R57*(((160.2-117.2)/100)+1) -> 71.90351669
A58: 412 | B58: Wasseranlagen | C58: 412 | D58: Rohrleitungen | E58: 03 | F58: Rohrleitung | G58: 01 | H58: Wasserfilter | I58: 229 | K58: 00 | M58: 00 | N58: Anzahl | O58: 412.03.01.229.00.00 | P58: inkl. Rohrnetz und Absperr-, Entleerungs- und Entnahmearmaturen, Druckminderung | Q58: 1.189650463 | R58: 47.89373037 | S58: 44.2482911 | T58: 52.64 | U58: =R58*(((160.2-117.2)/100)+1) -> 68.48803442
A59: 412 | B59: Wasseranlagen | C59: 412 | D59: Rohrleitungen | E59: 03 | F59: Rohrleitung | G59: 01 | H59: Wasserzähler | I59: 230 | K59: 00 | M59: 00 | N59: Anzahl | O59: 412.03.01.230.00.00 | P59: inkl. Rohrnetz und Absperr-, Entleerungs- und Entnahmearmaturen, Druckminderung | Q59: 1.34052154 | R59: 6.27997037 | S59: 5.3663 | T59: 7.19364074 | U59: =R59*(((160.2-117.2)/100)+1) -> 8.980357629
A60: 412 | B60: Wasseranlagen | C60: 412 | D60: dezentrale Wassererwärmer | E60: 04 | F60: Durchlauferhitzer, Klein-, Wand- und Standspeicher | G60: 01 | I60: 000 | K60: 00 | M60: 00 | N60: Anzahl | O60: 412.04.01.000.00.00 | P60: ohne Entkalkung | Q60: 3.539058752 | R60: 11.91809247 | S60: 4.49 | T60: 15.8903738 | U60: =R60*(((160.2-117.2)/100)+1) -> 17.04287223
A61: 412 | B61: Wasseranlagen | C61: 412 | D61: Sanitärobjekte | E61: 05 | F61: Sanitäre Einrichtungsgegenstände | G61: 01 | I61: 000 | K61: 00 | M61: 00 | N61: Anzahl | O61: 412.05.01.000.00.00 | P61: Waschtisch, Urinale, WC, Duschen, Wannen, etc.; inkl. Armaturen und Spülung | Q61: 1.597943682 | R61: 3.780753667 | S61: 2.910574 | T61: 4.650933334 | U61: =R61*(((160.2-117.2)/100)+1) -> 5.406477744
A62: 413 | B62: Gasanlagen | C62: 413 | D62: Gaslagerungs- und Erzeugungsanlage | E62: 01 | F62: Gastank inkl. Füll- u. Entleerungseinrichtungen | G62: 01 | I62: 000 | J62: oberirdisch | K62: 01 | L62: Nenninhalt <= 10.000 l | M62: 01 | N62: Anzahl | O62: 413.01.01.000.01.01 | P62: inkl. Filter, Druckminderer, Armaturen | Q62: 2.800102807 | R62: 165.0253584 | S62: 86.853102 | T62: 243.1976147 | U62: =R62*(((160.2-117.2)/100)+1) -> 235.9862625
A63: 413 | B63: Gasanlagen | C63: 413 | D63: Gaslagerungs- und Erzeugungsanlage | E63: 01 | F63: Gastank inkl. Füll- u. Entleerungseinrichtungen | G63: 01 | I63: 000 | J63: oberirdisch | K63: 01 | L63: Nenninhalt > 10.000 bis 50.000 l | M63: 02 | N63: Anzahl | O63: 413.01.01.000.01.02 | P63: inkl. Filter, Druckminderer, Armaturen | Q63: 2.062070271 | R63: 230.8220392 | S63: 150.7620785 | T63: 310.882 | U63: =R63*(((160.2-117.2)/100)+1) -> 330.0755161
A64: 413 | B64: Gasanlagen | C64: 413 | D64: Gaslagerungs- und Erzeugungsanlage | E64: 01 | F64: Gastank inkl. Füll- u. Entleerungseinrichtungen | G64: 01 | I64: 000 | J64: unterirdisch | K64: 02 | L64: Nenninhalt <= 10.000 l | M64: 01 | N64: Anzahl | O64: 413.01.01.000.02.01 | P64: inkl. Filter, Druckminderer, Armaturen | Q64: 2.433991473 | R64: 203.6524402 | S64: 118.609753 | T64: 288.6951275 | U64: =R64*(((160.2-117.2)/100)+1) -> 291.2229895
A65: 413 | B65: Gasanlagen | C65: 413 | D65: Gaslagerungs- und Erzeugungsanlage | E65: 01 | F65: Gastank inkl. Füll- u. Entleerungseinrichtungen | G65: 01 | I65: 000 | J65: unterirdisch | K65: 02 | L65: Nenninhalt > 10.000 bis 50.000 l | M65: 02 | N65: Anzahl | O65: 413.01.01.000.02.02 | P65: inkl. Filter, Druckminderer, Armaturen | Q65: 2.220401632 | R65: 337.0233921 | S65: 209.3051928 | T65: 464.7415915 | U65: =R65*(((160.2-117.2)/100)+1) -> 481.9434508
A66: 413 | B66: Gasanlagen | C66: 413 | D66: Übergabestationen | E66: 02 | F66: Gaseinspeisung | G66: 01 | I66: 000 | K66: 00 | M66: 00 | N66: Anzahl | O66: 413.02.01.000.00.00 | Q66: 1.723309565 | R66: 62.2212851 | S66: 45.69534503 | T66: 78.74722517 | U66: =R66*(((160.2-117.2)/100)+1) -> 88.97643769
A67: 413 | B67: Gasanlagen | C67: 413 | D67: Druckregelanlagen und Gasleitungen | E67: 03 | F67: Gasleitungsnetz | G67: 01 | H67: Gaszähler | I67: 146 | K67: 00 | M67: 00 | N67: Anzahl | O67: 413.03.01.146.00.00 | Q67: 1.572208093 | R67: 91.532025 | S67: 71.17 | T67: 111.89405 | U67: =R67*(((160.2-117.2)/100)+1) -> 130.8907957
A68: 413 | B68: Gasanlagen | C68: 413 | D68: Druckregelanlagen und Gasleitungen | E68: 03 | F68: Gasregelstrecke | G68: 02 | I68: 000 | K68: 00 | M68: 00 | N68: Anzahl | O68: 413.03.02.000.00.00 | Q68: 2.057280426 | R68: 38.52640502 | S68: 22.08107475 | T68: 45.42696287 | U68: =R68*(((160.2-117.2)/100)+1) -> 55.09275917
A69: 421 | B69: Wärmeerzeugungsanlagen | C69: 421 | D69: Brennstoffversorgung | E69: 01 | F69: Heizöltank | G69: 01 | I69: 000 | J69: oberirdisch | K69: 01 | L69: Nenninhalt <= 10.000 l | M69: 01 | N69: Anzahl | O69: 421.01.01.000.01.01 | P69: inkl. Füll- u. Entleerungseinrichtungen | Q69: 1.252175078 | R69: 123.3483258 | S69: 109.5370667 | T69: 137.159585 | U69: =R69*(((160.2-117.2)/100)+1) -> 176.3881059
A70: 421 | B70: Wärmeerzeugungsanlagen | C70: 421 | D70: Brennstoffversorgung | E70: 01 | F70: Heizöltank | G70: 01 | I70: 000 | J70: oberirdisch | K70: 01 | L70: Nenninhalt > 10.000 bis 50.000 l | M70: 02 | N70: Anzahl | O70: 421.01.01.000.01.02 | P70: inkl. Füll- u. Entleerungseinrichtungen | Q70: 1.254733703 | R70: 174.5845943 | S70: 154.8605 | T70: 194.3086886 | U70: =R70*(((160.2-117.2)/100)+1) -> 249.6559698
A71: 421 | B71: Wärmeerzeugungsanlagen | C71: 421 | D71: Brennstoffversorgung | E71: 01 | F71: Heizöltank | G71: 01 | I71: 000 | J71: unterirdisch | K71: 02 | L71: Nenninhalt <= 10.000 l | M71: 01 | N71: Anzahl | O71: 421.01.01.000.02.01 | P71: inkl. Füll- u. Entleerungseinrichtungen | Q71: 1.482625896 | R71: 135.9783028 | S71: 109.5439333 | T71: 162.4126723 | U71: =R71*(((160.2-117.2)/100)+1) -> 194.4489731
A72: 421 | B72: Wärmeerzeugungsanlagen | C72: 421 | D72: Brennstoffversorgung | E72: 01 | F72: Heizöltank | G72: 01 | I72: 000 | J72: unterirdisch | K72: 02 | L72: Nenninhalt > 10.000 bis 50.000 l | M72: 02 | N72: Anzahl | O72: 421.01.01.000.02.02 | P72: inkl. Füll- u. Entleerungseinrichtungen | Q72: 1.513943078 | R72: 194.655241 | S72: 154.8605 | T72: 234.4499821 | U72: =R72*(((160.2-117.2)/100)+1) -> 278.3569947
A73: 421 | B73: Wärmeerzeugungsanlagen | C73: 421 | D73: Brennstoffversorgung | E73: 01 | F73: Heizöltank | G73: 01 | I73: 000 | J73: Leckageerkennungssytem = ja | K73: 03 | M73: 00 | O73: 421.01.01.000.03.00 | P73: inkl. Füll- u. Entleerungseinrichtungen | Q73: 1 | R73: 66.05282313 | S73: 66.05282313 | T73: 66.05282313 | U73: =R73*(((160.2-117.2)/100)+1) -> 94.45553708
A74: 421 | B74: Wärmeerzeugungsanlagen | C74: 421 | D74: Brennstoffversorgung | E74: 01 | F74: Heizölversorgungsleitung für Ölbrenner | G74: 02 | I74: 000 | K74: 00 | M74: 00 | N74: pauschal | O74: 421.01.02.000.00.00 | P74: inkl. Armaturen | Q74: 1.104540934 | R74: 62.18610566 | S74: 59.097074 | T74: 65.27513732 | U74: =R74*(((160.2-117.2)/100)+1) -> 88.9261311
A75: 421 | B75: Wärmeerzeugungsanlagen | C75: 421 | D75: Wärmeübergabestationen - Fernwärme | E75: 02 | F75: Fernwärmeübergabestation - Heißwasser | G75: 01 | I75: 000 | K75: 00 | L75: Übertragungsleistung <= 150 kW | M75: 01 | N75: Anzahl | O75: 421.02.01.000.00.01 | Q75: 1.469460468 | R75: 136.237818 | S75: 112.9855925 | T75: 166.0278616 | U75: =R75*(((160.2-117.2)/100)+1) -> 194.8200798
A76: 421 | B76: Wärmeerzeugungsanlagen | C76: 421 | D76: Wärmeübergabestationen - Fernwärme | E76: 02 | F76: Fernwärmeübergabestation - Heißwasser | G76: 01 | I76: 000 | K76: 00 | L76: Übertragungsleistung >150 bis 300 kW | M76: 02 | N76: Anzahl | O76: 421.02.01.000.00.02 | Q76: 1.186220152 | R76: 211.6003206 | S76: 193.5764067 | T76: 229.6242345 | U76: =R76*(((160.2-117.2)/100)+1) -> 302.5884584
A77: 421 | B77: Wärmeerzeugungsanlagen | C77: 421 | D77: Wärmeübergabestationen - Fernwärme | E77: 02 | F77: Fernwärmeübergabestation - Heißwasser | G77: 01 | I77: 000 | K77: 00 | L77: Übertragungsleistung > 300 bis 500 kW | M77: 03 | N77: Anzahl | O77: 421.02.01.000.00.03 | Q77: 1.872101887 | R77: 213.0533258 | S77: 142.82 | T77: 267.3735914 | U77: =R77*(((160.2-117.2)/100)+1) -> 304.6662559
A78: 421 | B78: Wärmeerzeugungsanlagen | C78: 421 | D78: Wärmeübergabestationen - Fernwärme | E78: 02 | F78: Fernwärmeübergabestation - Heißwasser | G78: 01 | I78: 000 | K78: 00 | L78: Übertragungsleistung > 500 bis 800 kW | M78: 04 | N78: Anzahl | O78: 421.02.01.000.00.04 | Q78: 2.647350405 | R78: 272.2595938 | S78: 135.1 | T78: 357.6570398 | U78: =R78*(((160.2-117.2)/100)+1) -> 389.3312192
A79: 421 | B79: Wärmeerzeugungsanlagen | C79: 421 | D79: Wärmeerzeugung auf der Grundlage von Brennstoffen oder unerschöpflichen Energiequellen | E79: 03 | F79: Wärmeerzeugungsanlage, fester Brennstoff | G79: 01 | H79: Kessel | I79: 164 | J79: Wasserkessel | K79: 01 | L79: Nennleistung <= 50 kW | M79: 01 | N79: Anzahl | O79: 421.03.01.164.01.01 | Q79: 1.155336945 | R79: 97.61168047 | S79: 90.57672463 | T79: 104.6466363 | U79: =R79*(((160.2-117.2)/100)+1) -> 139.5847031
A80: 421 | B80: Wärmeerzeugungsanlagen | C80: 421 | D80: Wärmeerzeugung auf der Grundlage von Brennstoffen oder unerschöpflichen Energiequellen | E80: 03 | F80: Wärmeerzeugungsanlage, fester Brennstoff | G80: 01 | H80: Kessel | I80: 164 | J80: Wasserkessel | K80: 01 | L80: Nennleistung > 50 bis 150 kW | M80: 02 | N80: Anzahl | O80: 421.03.01.164.01.02 | Q80: 1.008227092 | R80: 141.1743224 | S80: 140.5959744 | T80: 141.7526704 | U80: =R80*(((160.2-117.2)/100)+1) -> 201.879281
A81: 421 | B81: Wärmeerzeugungsanlagen | C81: 421 | D81: Wärmeerzeugung auf der Grundlage von Brennstoffen oder unerschöpflichen Energiequellen | E81: 03 | F81: Wärmeerzeugungsanlage, fester Brennstoff | G81: 01 | H81: Kessel | I81: 164 | J81: Wasserkessel | K81: 01 | L81: Nennleistung > 150 bis 300 kW | M81: 03 | N81: Anzahl | O81: 421.03.01.164.01.03 | Q81: 1.027220582 | R81: 213.7287562 | S81: 210.8589052 | T81: 216.5986073 | U81: =R81*(((160.2-117.2)/100)+1) -> 305.6321214
A82: 421 | B82: Wärmeerzeugungsanlagen | C82: 421 | D82: Wärmeerzeugung auf der Grundlage von Brennstoffen oder unerschöpflichen Energiequellen | E82: 03 | F82: Wärmeerzeugungsanlage, fester Brennstoff | G82: 01 | H82: Kessel | I82: 164 | J82: Wasserkessel | K82: 01 | L82: Nennleistung > 300 bis 500 kW | M82: 04 | N82: Anzahl | O82: 421.03.01.164.01.04 | Q82: 1.266627917 | R82: 316.2762015 | S82: 279.0720074 | T82: 353.4803955 | U82: =R82*(((160.2-117.2)/100)+1) -> 452.2749681
A83: 421 | B83: Wärmeerzeugungsanlagen | C83: 421 | D83: Wärmeerzeugung auf der Grundlage von Brennstoffen oder unerschöpflichen Energiequellen | E83: 03 | F83: Wärmeerzeugungsanlage, fester Brennstoff | G83: 01 | H83: Kessel | I83: 164 | J83: Wasserkessel | K83: 01 | L83: Nennleistung > 500 bis 800 kW | M83: 05 | N83: Anzahl | O83: 421.03.01.164.01.05 | Q83: 1.559490676 | R83: 509.863063 | S83: 398.4097834 | T83: 621.3163425 | U83: =R83*(((160.2-117.2)/100)+1) -> 729.10418
A84: 421 | B84: Wärmeerzeugungsanlagen | C84: 421 | D84: Wärmeerzeugung auf der Grundlage von Brennstoffen oder unerschöpflichen Energiequellen | E84: 03 | F84: Wärmeerzeugungsanlage, flüssiger Brennstoff | G84: 01 | H84: Brenner | I84: 014 | J84: Ölbrenner | K84: 03 | L84: Nennleistung <= 50 kW | M84: 01 | N84: Anzahl | O84: 421.03.01.014.03.01 | Q84: 1.033819761 | R84: 154.0226959 | S84: 151.4615 | T84: 156.5838918 | U84: =R84*(((160.2-117.2)/100)+1)+U79 -> 359.8371582
A85: 421 | B85: Wärmeerzeugungsanlagen | C85: 421 | D85: Wärmeerzeugung auf der Grundlage von Brennstoffen oder unerschöpflichen Energiequellen | E85: 03 | F85: Wärmeerzeugungsanlage, flüssiger Brennstoff | G85: 01 | H85: Brenner | I85: 014 | J85: Ölbrenner | K85: 03 | L85: Nennleistung > 50 bis 150 kW | M85: 02 | N85: Anzahl | O85: 421.03.01.014.03.02 | Q85: 1.025595331 | R85: 218.4039761 | S85: 215.6442333 | T85: 221.1637188 | U85: =R85*(((160.2-117.2)/100)+1)+U80 -> 514.1969668
A86: 421 | B86: Wärmeerzeugungsanlagen | C86: 421 | D86: Wärmeerzeugung auf der Grundlage von Brennstoffen oder unerschöpflichen Energiequellen | E86: 03 | F86: Wärmeerzeugungsanlage, flüssiger Brennstoff | G86: 01 | H86: Brenner | I86: 014 | J86: Ölbrenner | K86: 03 | L86: Nennleistung > 150 bis 300 kW | M86: 03 | N86: Anzahl | O86: 421.03.01.014.03.03 | Q86: 1.0012063 | R86: 320.6915419 | S86: 320.4982333 | T86: 320.8848505 | U86: =R86*(((160.2-117.2)/100)+1)+U81 -> 764.2210263
A87: 421 | B87: Wärmeerzeugungsanlagen | C87: 421 | D87: Wärmeerzeugung auf der Grundlage von Brennstoffen oder unerschöpflichen Energiequellen | E87: 03 | F87: Wärmeerzeugungsanlage, flüssiger Brennstoff | G87: 01 | H87: Brenner | I87: 014 | J87: Ölbrenner | K87: 03 | L87: Nennleistung > 300 bis 500 kW | M87: 04 | N87: Anzahl | O87: 421.03.01.014.03.04 | Q87: 1.106152134 | R87: 432.8875225 | S87: 411.0695667 | T87: 454.7054783 | U87: =R87*(((160.2-117.2)/100)+1)+U82 -> 1071.304125
A88: 421 | B88: Wärmeerzeugungsanlagen | C88: 421 | D88: Wärmeerzeugung auf der Grundlage von Brennstoffen oder unerschöpflichen Energiequellen | E88: 03 | F88: Wärmeerzeugungsanlage, flüssiger Brennstoff | G88: 01 | H88: Brenner | I88: 014 | J88: Ölbrenner | K88: 03 | L88: Nennleistung > 500 bis 800 kW | M88: 05 | N88: Anzahl | O88: 421.03.01.014.03.05 | Q88: 1.008866776 | R88: 601.9659023 | S88: 599.3089333 | T88: 604.6228713 | U88: =R88*(((160.2-117.2)/100)+1)+U83 -> 1589.91542
A89: 421 | B89: Wärmeerzeugungsanlagen | C89: 421 | D89: Wärmeerzeugung auf der Grundlage von Brennstoffen oder unerschöpflichen Energiequellen | E89: 03 | F89: Wärmeerzeugungsanlage, gasförmiger Brennstoff | G89: 01 | H89: Brenner | I89: 014 | J89: atmosphärische Gasbrenner (ohne Gebläse) | K89: 04 | L89: Nennleistung <= 50 kW | M89: 01 | N89: Anzahl | O89: 421.03.01.014.04.01 | Q89: 1.220817573 | R89: 132.9270548 | S89: 119.710017 | T89: 146.1440925 | U89: =R89*(((160.2-117.2)/100)+1)+U79 -> 329.6703914
A90: 421 | B90: Wärmeerzeugungsanlagen | C90: 421 | D90: Wärmeerzeugung auf der Grundlage von Brennstoffen oder unerschöpflichen Energiequellen | E90: 03 | F90: Wärmeerzeugungsanlage, gasförmiger Brennstoff | G90: 01 | H90: Brenner | I90: 014 | J90: atmosphärische Gasbrenner (ohne Gebläse) | K90: 04 | L90: Nennleistung > 50 bis 150 kW | M90: 02 | N90: Anzahl | O90: 421.03.01.014.04.02 | Q90: 1.007211474 | R90: 207.5374494 | S90: 206.7918125 | T90: 208.2830862 | U90: =R90*(((160.2-117.2)/100)+1)+U80 -> 498.6578336
A91: 421 | B91: Wärmeerzeugungsanlagen | C91: 421 | D91: Wärmeerzeugung auf der Grundlage von Brennstoffen oder unerschöpflichen Energiequellen | E91: 03 | F91: Wärmeerzeugungsanlage, gasförmiger Brennstoff | G91: 01 | H91: Brenner | I91: 014 | J91: atmosphärische Gasbrenner (ohne Gebläse) | K91: 04 | L91: Nennleistung > 150 bis 300 kW | M91: 03 | N91: Anzahl | O91: 421.03.01.014.04.03 | Q91: 1.10049834 | R91: 309.5745463 | S91: 294.7629527 | T91: 324.38614 | U91: =R91*(((160.2-117.2)/100)+1)+U81 -> 748.3237227
A92: 421 | B92: Wärmeerzeugungsanlagen | C92: 421 | D92: Wärmeerzeugung auf der Grundlage von Brennstoffen oder unerschöpflichen Energiequellen | E92: 03 | F92: Wärmeerzeugungsanlage, gasförmiger Brennstoff | G92: 01 | H92: Brenner | I92: 014 | J92: atmosphärische Gasbrenner (ohne Gebläse) | K92: 04 | L92: Nennleistung > 300 bis 500 kW | M92: 04 | N92: Anzahl | O92: 421.03.01.014.04.04 | Q92: 1.200831747 | R92: 447.4396409 | S92: 406.6095843 | T92: 488.2696975 | U92: =R92*(((160.2-117.2)/100)+1)+U82 -> 1092.113655
A93: 421 | B93: Wärmeerzeugungsanlagen | C93: 421 | D93: Wärmeerzeugung auf der Grundlage von Brennstoffen oder unerschöpflichen Energiequellen | E93: 03 | F93: Wärmeerzeugungsanlage, gasförmiger Brennstoff | G93: 01 | H93: Brenner | I93: 014 | J93: Gasgebläsebrenner | K93: 05 | L93: Nennleistung <= 50 kW | M93: 01 | N93: Anzahl | O93: 421.03.01.014.05.01 | Q93: 1.288601709 | R93: 156.9876069 | S93: 137.19085 | T93: 176.7843638 | U93: =R93*(((160.2-117.2)/100)+1)+U79 -> 364.076981
A94: 421 | B94: Wärmeerzeugungsanlagen | C94: 421 | D94: Wärmeerzeugung auf der Grundlage von Brennstoffen oder unerschöpflichen Energiequellen | E94: 03 | F94: Wärmeerzeugungsanlage, gasförmiger Brennstoff | G94: 01 | H94: Brenner | I94: 014 | J94: Gasgebläsebrenner | K94: 05 | L94: Nennleistung > 50 bis 150 kW | M94: 02 | N94: Anzahl | O94: 421.03.01.014.05.02 | Q94: 1.014361844 | R94: 220.4467243 | S94: 218.875 | T94: 222.0184487 | U94: =R94*(((160.2-117.2)/100)+1)+U80 -> 517.1180968
A95: 421 | B95: Wärmeerzeugungsanlagen | C95: 421 | D95: Wärmeerzeugung auf der Grundlage von Brennstoffen oder unerschöpflichen Energiequellen | E95: 03 | F95: Wärmeerzeugungsanlage, gasförmiger Brennstoff | G95: 01 | H95: Brenner | I95: 014 | J95: Gasgebläsebrenner | K95: 05 | L95: Nennleistung > 150 bis 300 kW | M95: 03 | N95: Anzahl | O95: 421.03.01.014.05.03 | Q95: 1.680422691 | R95: 376.257627 | S95: 303.120163 | T95: 509.37 | U95: =R95*(((160.2-117.2)/100)+1)+U81 -> 843.680528
A96: 421 | B96: Wärmeerzeugungsanlagen | C96: 421 | D96: Wärmeerzeugung auf der Grundlage von Brennstoffen oder unerschöpflichen Energiequellen | E96: 03 | F96: Wärmeerzeugungsanlage, gasförmiger Brennstoff | G96: 01 | H96: Brenner | I96: 014 | J96: Gasgebläsebrenner | K96: 05 | L96: Nennleistung > 300 bis 500 kW | M96: 04 | N96: Anzahl | O96: 421.03.01.014.05.04 | Q96: 1.297094016 | R96: 459.2274283 | S96: 399.8333765 | T96: 518.62148 | U96: =R96*(((160.2-117.2)/100)+1)+U82 -> 1108.970191
A97: 421 | B97: Wärmeerzeugungsanlagen | C97: 421 | D97: Wärmeerzeugung auf der Grundlage von Brennstoffen oder unerschöpflichen Energiequellen | E97: 03 | F97: Wärmeerzeugungsanlage, gasförmiger Brennstoff | G97: 01 | H97: Brenner | I97: 014 | J97: Gasgebläsebrenner | K97: 05 | L97: Nennleistung > 500 bis 800 kW | M97: 05 | N97: Anzahl | O97: 421.03.01.014.05.05 | Q97: 1.171655012 | R97: 592.9564053 | S97: 546.0871107 | T97: 639.8257 | U97: =R97*(((160.2-117.2)/100)+1)+U83 -> 1577.03184
A98: 421 | B98: Wärmeerzeugungsanlagen | C98: 421 | D98: Wärmeerzeugung auf der Grundlage von Brennstoffen oder unerschöpflichen Energiequellen | E98: 03 | F98: Wärmepumpe | G98: 02 | I98: 000 | J98: Grundwasser-Wärmepumpen (inkl. Brunnenanlage) | K98: 08 | L98: thermische Leistung <= 30 kW | M98: 01 | N98: Anzahl | O98: 421.03.02.000.08.01 | Q98: 1.584299129 | R98: 496.4182771 | S98: 384.1801992 | T98: 608.656355 | U98: =R98*(((160.2-117.2)/100)+1) -> 709.8781362
A99: 421 | B99: Wärmeerzeugungsanlagen | C99: 421 | D99: Wärmeerzeugung auf der Grundlage von Brennstoffen oder unerschöpflichen Energiequellen | E99: 03 | F99: Wärmepumpe | G99: 02 | I99: 000 | J99: Grundwasser-Wärmepumpen (inkl. Brunnenanlage) | K99: 08 | L99: thermische Leistung >30 bis 80 kW | M99: 02 | N99: Anzahl | O99: 421.03.02.000.08.02 | Q99: 1.360657488 | R99: 621.1656086 | S99: 526.2649172 | T99: 716.0663 | U99: =R99*(((160.2-117.2)/100)+1) -> 888.2668203
A100: 421 | B100: Wärmeerzeugungsanlagen | C100: 421 | D100: Wärmeerzeugung auf der Grundlage von Brennstoffen oder unerschöpflichen Energiequellen | E100: 03 | F100: Wärmepumpe | G100: 02 | I100: 000 | J100: Grundwasser-Wärmepumpen (inkl. Brunnenanlage) | K100: 08 | L100: thermische Leistung > 80 bis 150 kW | M100: 03 | N100: Anzahl | O100: 421.03.02.000.08.03 | Q100: 1.126347603 | R100: 656.2474844 | S100: 617.25325 | T100: 695.2417188 | U100: =R100*(((160.2-117.2)/100)+1) -> 938.4339027
A101: 421 | B101: Wärmeerzeugungsanlagen | C101: 421 | D101: Wärmeerzeugung auf der Grundlage von Brennstoffen oder unerschöpflichen Energiequellen | E101: 03 | F101: Wärmepumpe | G101: 02 | I101: 000 | J101: Grundwasser-Wärmepumpen (inkl. Brunnenanlage) | K101: 08 | L101: thermische Leistung > 150 bis 250 kW | M101: 04 | N101: Anzahl | O101: 421.03.02.000.08.04 | Q101: 1.166807905 | R101: 920.5110701 | S101: 849.6471402 | T101: 991.375 | U101: =R101*(((160.2-117.2)/100)+1) -> 1316.33083
A102: 421 | B102: Wärmeerzeugungsanlagen | C102: 421 | D102: Wärmeerzeugung auf der Grundlage von Brennstoffen oder unerschöpflichen Energiequellen | E102: 03 | F102: Wärmepumpe | G102: 02 | I102: 000 | J102: Luft-Wärmepumpen (inkl. Verdampfer) | K102: 09 | L102: thermische Leistung <= 30 kW | M102: 01 | N102: Anzahl | O102: 421.03.02.000.09.01 | Q102: 1.867191462 | R102: 299.3621021 | S102: 193.25 | T102: 360.83475 | U102: =R102*(((160.2-117.2)/100)+1) -> 428.087806
A103: 421 | B103: Wärmeerzeugungsanlagen | C103: 421 | D103: Wärmeerzeugung auf der Grundlage von Brennstoffen oder unerschöpflichen Energiequellen | E103: 03 | F103: Wärmepumpe | G103: 02 | I103: 000 | J103: Luft-Wärmepumpen (inkl. Verdampfer) | K103: 09 | L103: thermische Leistung > 30 bis 80 kW | M103: 02 | N103: Anzahl | O103: 421.03.02.000.09.02 | Q103: 1.239892394 | R103: 421.6167 | S103: 376.4615667 | T103: 466.7718333 | U103: =R103*(((160.2-117.2)/100)+1) -> 602.911881
A104: 421 | B104: Wärmeerzeugungsanlagen | C104: 421 | D104: Wärmeerzeugung auf der Grundlage von Brennstoffen oder unerschöpflichen Energiequellen | E104: 03 | F104: Wärmepumpe | G104: 02 | I104: 000 | J104: Luft-Wärmepumpen (inkl. Verdampfer) | K104: 09 | L104: thermische Leistung > 80 bis 150 kW | M104: 03 | N104: Anzahl | O104: 421.03.02.000.09.03 | Q104: 1.262736366 | R104: 535.1061134 | S104: 472.9725667 | T104: 597.2396601 | U104: =R104*(((160.2-117.2)/100)+1) -> 765.2017421
A105: 421 | B105: Wärmeerzeugungsanlagen | C105: 421 | D105: Wärmeerzeugung auf der Grundlage von Brennstoffen oder unerschöpflichen Energiequellen | E105: 03 | F105: Wärmepumpe | G105: 02 | I105: 000 | J105: Luft-Wärmepumpen (inkl. Verdampfer) | K105: 09 | L105: thermische Leistung > 150 bis 250 kW | M105: 04 | N105: Anzahl | O105: 421.03.02.000.09.04 | Q105: 1.320825106 | R105: 632.4572555 | S105: 545.0279333 | T105: 719.8865777 | U105: =R105*(((160.2-117.2)/100)+1) -> 904.4138754
A106: 421 | B106: Wärmeerzeugungsanlagen | C106: 421 | D106: Wärmeerzeugung auf der Grundlage von Brennstoffen oder unerschöpflichen Energiequellen | E106: 03 | F106: Wärmepumpe | G106: 02 | I106: 000 | J106: Erd-Wärmepumpen (inkl. Erdkollektor) | K106: 10 | L106: thermische Leistung <= 30 kW | M106: 01 | N106: Anzahl | O106: 421.03.02.000.10.01 | Q106: 1.943005284 | R106: 281.7437549 | S106: 191.4667 | T106: 372.0208097 | U106: =R106*(((160.2-117.2)/100)+1) -> 402.8935694
A107: 421 | B107: Wärmeerzeugungsanlagen | C107: 421 | D107: Wärmeerzeugung auf der Grundlage von Brennstoffen oder unerschöpflichen Energiequellen | E107: 03 | F107: Wärmepumpe | G107: 02 | I107: 000 | J107: Erd-Wärmepumpen (inkl. Erdkollektor) | K107: 10 | L107: thermische Leistung >30 bis 80 kW | M107: 02 | N107: Anzahl | O107: 421.03.02.000.10.02 | Q107: 2.071798881 | R107: 385.4485557 | S107: 250.9595 | T107: 519.9376113 | U107: =R107*(((160.2-117.2)/100)+1) -> 551.1914346
A108: 421 | B108: Wärmeerzeugungsanlagen | C108: 421 | D108: Wärmeerzeugung auf der Grundlage von Brennstoffen oder unerschöpflichen Energiequellen | E108: 03 | F108: Gastherme | G108: 03 | I108: 000 | K108: 00 | L108: Nennleistung <= 30 kW | M108: 01 | N108: Anzahl | O108: 421.03.03.000.00.01 | P108: inkl. Brenner | Q108: 1.160961608 | R108: 138.1224284 | S108: 127.834227 | T108: 148.4106297 | U108: =R108*(((160.2-117.2)/100)+1) -> 197.5150725
A109: 421 | B109: Wärmeerzeugungsanlagen | C109: 421 | D109: Wärmeerzeugung auf der Grundlage von Brennstoffen oder unerschöpflichen Energiequellen | E109: 03 | F109: Gastherme | G109: 03 | I109: 000 | K109: 00 | L109: Nennleistung >30 bis 80 kW | M109: 02 | N109: Anzahl | O109: 421.03.03.000.00.02 | P109: inkl. Brenner | Q109: 1.033280688 | R109: 220.1071882 | S109: 216.5044792 | T109: 223.7098973 | U109: =R109*(((160.2-117.2)/100)+1) -> 314.7532792
A110: 421 | B110: Wärmeerzeugungsanlagen | C110: 421 | D110: Wärmeerzeugung auf der Grundlage von Brennstoffen oder unerschöpflichen Energiequellen | E110: 03 | F110: Solarthermie | G110: 04 | I110: 000 | K110: 00 | L110: Kollektorfläche <= 100 m2 | M110: 01 | N110: Anzahl | O110: 421.03.04.000.00.01 | Q110: 1.449045279 | R110: 305.9043375 | S110: 249.815175 | T110: 361.9935 | U110: =R110*(((160.2-117.2)/100)+1) -> 437.4432026
A111: 421 | B111: Wärmeerzeugungsanlagen | C111: 421 | D111: Wärmeerzeugung auf der Grundlage von Brennstoffen oder unerschöpflichen Energiequellen | E111: 03 | F111: Solarthermie | G111: 04 | I111: 000 | K111: 00 | L111: Kollektorfläche > 100 bis 500 m2 | M111: 02 | N111: Anzahl | O111: 421.03.04.000.00.02 | Q111: 3.244139066 | R111: 1193.510573 | S111: 562.4276465 | T111: 1824.5935 | U111: =R111*(((160.2-117.2)/100)+1) -> 1706.72012
A112: 421 | B112: Wärmeerzeugungsanlagen | C112: 421 | D112: Wärmeerzeugung auf der Grundlage von Brennstoffen oder unerschöpflichen Energiequellen | E112: 03 | F112: Strahlungsheizung | G112: 08 | I112: 000 | J112: Hellstrahler (brennerlos) | K112: 01 | L112: Heizleistung <= 15 kW | M112: 01 | N112: Anzahl | O112: 421.03.08.000.01.01 | Q112: 1.972313025 | R112: 75.95098806 | S112: 51.10564562 | T112: 100.7963305 | U112: =R112*(((160.2-117.2)/100)+1) -> 108.6099129
A113: 421 | B113: Wärmeerzeugungsanlagen | C113: 421 | D113: Wärmeerzeugung auf der Grundlage von Brennstoffen oder unerschöpflichen Energiequellen | E113: 03 | F113: Strahlungsheizung | G113: 08 | I113: 000 | J113: Hellstrahler (brennerlos) | K113: 01 | L113: Heizleistung > 15 bis 40 kW | M113: 02 | N113: Anzahl | O113: 421.03.08.000.01.02 | Q113: 2.104166717 | R113: 100.821905 | S113: 64.95907867 | T113: 136.6847313 | U113: =R113*(((160.2-117.2)/100)+1) -> 144.1753241
A114: 421 | B114: Wärmeerzeugungsanlagen | C114: 421 | D114: Wärmeerzeugung auf der Grundlage von Brennstoffen oder unerschöpflichen Energiequellen | E114: 03 | F114: Strahlungsheizung | G114: 08 | I114: 000 | J114: Dunkelstrahler (inkl. Brenner) | K114: 02 | L114: Heizleistung <= 15 kW | M114: 01 | N114: Anzahl | O114: 421.03.08.000.02.01 | Q114: 2.281269546 | R114: 100.3419297 | S114: 61.16043094 | T114: 139.5234285 | U114: =R114*(((160.2-117.2)/100)+1) -> 143.4889595
A115: 421 | B115: Wärmeerzeugungsanlagen | C115: 421 | D115: Wärmeerzeugung auf der Grundlage von Brennstoffen oder unerschöpflichen Energiequellen | E115: 03 | F115: Strahlungsheizung | G115: 08 | I115: 000 | J115: Dunkelstrahler (inkl. Brenner) | K115: 02 | L115: Heizleistung > 15 bis 40 kW | M115: 02 | N115: Anzahl | O115: 421.03.08.000.02.02 | Q115: 2.629832375 | R115: 130.5131455 | S115: 71.91138983 | T115: 189.1149011 | U115: =R115*(((160.2-117.2)/100)+1) -> 186.633798
A116: 421 | B116: Wärmeerzeugungsanlagen | C116: 421 | D116: zentrale Wassererwärmungsanlagen für Trink- und Betriebswasser | E116: 04 | F116: Wassererwärmungsanlage | G116: 01 | H116: Warmwasserspeicher | I116: 227 | J116: Beheizung (Art) = innenliegender Wärmetauscher; Speicher-/ Ladesystem | K116: 01 | L116: Volumen <=150 l | M116: 01 | N116: Anzahl | O116: 421.04.01.227.01.01 | Q116: 1.256694241 | R116: 37.87212512 | S116: 33.56425025 | T116: 42.18 | U116: =R116*(((160.2-117.2)/100)+1) -> 54.15713893
A117: 421 | B117: Wärmeerzeugungsanlagen | C117: 421 | D117: zentrale Wassererwärmungsanlagen für Trink- und Betriebswasser | E117: 04 | F117: Wassererwärmungsanlage | G117: 01 | H117: Warmwasserspeicher | I117: 227 | J117: Beheizung (Art) = innenliegender Wärmetauscher; Speicher-/ Ladesystem | K117: 01 | L117: Volumen >150 bis 500 l | M117: 02 | N117: Anzahl | O117: 421.04.01.227.01.02 | Q117: 2.968273747 | R117: 58.83289629 | S117: 29.58 | T117: 87.80153744 | U117: =R117*(((160.2-117.2)/100)+1) -> 84.1310417
A118: 421 | B118: Wärmeerzeugungsanlagen | C118: 421 | D118: zentrale Wassererwärmungsanlagen für Trink- und Betriebswasser | E118: 04 | F118: Wassererwärmungsanlage | G118: 01 | H118: Warmwasserspeicher | I118: 227 | J118: Beheizung (Art) = innenliegender Wärmetauscher; Speicher-/ Ladesystem | K118: 01 | L118: Volumen > 500 bis 1.000 l | M118: 03 | N118: Anzahl | O118: 421.04.01.227.01.03 | Q118: 1.875274148 | R118: 92.75172361 | S118: 64.51678611 | T118: 120.9866611 | U118: =R118*(((160.2-117.2)/100)+1) -> 132.6349648
A119: 421 | B119: Wärmeerzeugungsanlagen | C119: 421 | D119: zentrale Wassererwärmungsanlagen für Trink- und Betriebswasser | E119: 04 | F119: Wassererwärmungsanlage | G119: 01 | H119: Warmwasserspeicher | I119: 227 | J119: Beheizung (Art) = innenliegender Wärmetauscher; Speicher-/ Ladesystem | K119: 01 | L119: Volumen > 1.000 bis 2.000 l | M119: 04 | N119: Anzahl | O119: 421.04.01.227.01.04 | Q119: 1.64337658 | R119: 112.5006918 | S119: 85.11892907 | T119: 139.8824546 | U119: =R119*(((160.2-117.2)/100)+1) -> 160.8759893
A120: 421 | B120: Wärmeerzeugungsanlagen | C120: 421 | D120: zentrale Wassererwärmungsanlagen für Trink- und Betriebswasser | E120: 04 | F120: Wassererwärmungsanlage | G120: 01 | H120: Warmwasserspeicher | I120: 227 | J120: Beheizung (Art) = Gasbrenner | K120: 02 | L120: Volumen <=150 l | M120: 01 | N120: Anzahl | O120: 421.04.01.227.02.01 | P120: inkl. Gasbrenner | Q120: 2.015738017 | R120: 99.67178679 | S120: 66.10109117 | T120: 133.2424824 | U120: =R120*(((160.2-117.2)/100)+1) -> 142.5306551
A121: 421 | B121: Wärmeerzeugungsanlagen | C121: 421 | D121: zentrale Wassererwärmungsanlagen für Trink- und Betriebswasser | E121: 04 | F121: Wassererwärmungsanlage | G121: 01 | H121: Warmwasserspeicher | I121: 227 | J121: Beheizung (Art) = Gasbrenner | K121: 02 | L121: Volumen >150 bis 500 l | M121: 02 | N121: Anzahl | O121: 421.04.01.227.02.02 | P121: inkl. Gasbrenner | Q121: 1.801709307 | R121: 140.1241172 | S121: 100.0275917 | T121: 180.2206428 | U121: =R121*(((160.2-117.2)/100)+1) -> 200.3774877
A122: 421 | B122: Wärmeerzeugungsanlagen | C122: 421 | D122: zentrale Wassererwärmungsanlagen für Trink- und Betriebswasser | E122: 04 | F122: Wassererwärmungsanlage | G122: 01 | H122: Warmwasserspeicher | I122: 227 | J122: Beheizung (Art) = elektrisch | K122: 03 | L122: Volumen > 50 bis 150 l | M122: 01 | N122: Anzahl | O122: 421.04.01.227.03.01 | Q122: 1.006673986 | R122: 47.7789076 | S122: 47.62 | T122: 47.93781521 | U122: =R122*(((160.2-117.2)/100)+1) -> 68.32383788
A123: 421 | B123: Wärmeerzeugungsanlagen | C123: 421 | D123: zentrale Wassererwärmungsanlagen für Trink- und Betriebswasser | E123: 04 | F123: Wassererwärmungsanlage | G123: 01 | H123: Warmwasserspeicher | I123: 227 | J123: Beheizung (Art) = elektrisch | K123: 03 | L123: Volumen > 150 bis 300 l | M123: 02 | N123: Anzahl | O123: 421.04.01.227.03.02 | Q123: 1.754512635 | R123: 71.50268085 | S123: 55.4 | T123: 97.2 | U123: =R123*(((160.2-117.2)/100)+1) -> 102.2488336
A124: 421 | B124: Wärmeerzeugungsanlagen | C124: 421 | D124: zentrale Wassererwärmungsanlagen für Trink- und Betriebswasser | E124: 04 | F124: Wassererwärmungsanlage | G124: 01 | H124: Warmwasserspeicher | I124: 227 | J124: Beheizung (Art) = elektrisch | K124: 03 | L124: Volumen > 300 bis 500 l | M124: 03 | N124: Anzahl | O124: 421.04.01.227.03.03 | Q124: 1.090862515 | R124: 76.24330161 | S124: 72.93 | T124: 79.55660322 | U124: =R124*(((160.2-117.2)/100)+1) -> 109.0279213
A125: 421 | B125: Wärmeerzeugungsanlagen | C125: 421 | D125: zentrale Wassererwärmungsanlagen für Trink- und Betriebswasser | E125: 04 | F125: Wassererwärmungsanlage | G125: 01 | H125: Warmwasserspeicher | I125: 227 | J125: Beheizung (Art) = elektrisch | K125: 03 | L125: Volumen > 500 bis 1.000 l | M125: 04 | N125: Anzahl | O125: 421.04.01.227.03.04 | Q125: 1.036747001 | R125: 96.30758194 | S125: 94.57 | T125: 98.04516389 | U125: =R125*(((160.2-117.2)/100)+1) -> 137.7198422
A126: 422 | B126: Wärmeverteilnetze | C126: 422 | D126: Wärmeverteilnetz inkl. Pumpen, Verteiler und Rohrleitungen | E126: 01 | F126: Wärmeverteilnetz | G126: 01 | H126: Heizungsverteiler | I126: 154 | J126: Anzahl Kreise 1 bis 5 | K126: 01 | L126: Nennweite Zuleitung Verteiler <100DN | M126: 01 | N126: pauschal | O126: 422.01.01.154.01.01 | P126: inkl. Entleerungen, Thermometer, Manometer, Armaturen, Ventile, Klappen, Wächter, Schmutzfänger, Umwälzpumpen, Druckausdehnungsgefäße, Nachspeiseeinrichtungen, Hydrauliche Weichen etc. | Q126: 1.169518047 | R126: 102.5405384 | S126: 95.86 | T126: 112.11 | U126: =R126*(((160.2-117.2)/100)+1) -> 146.6329699
A127: 422 | B127: Wärmeverteilnetze | C127: 422 | D127: Wärmeverteilnetz inkl. Pumpen, Verteiler und Rohrleitungen | E127: 01 | F127: Wärmeverteilnetz | G127: 01 | H127: Heizungsverteiler | I127: 154 | J127: Anzahl Kreise 6 bis 10 | K127: 02 | L127: Nennweite Zuleitung Verteiler <100DN | M127: 01 | N127: pauschal | O127: 422.01.01.154.02.01 | P127: inkl. Entleerungen, Thermometer, Manometer, Armaturen, Ventile, Klappen, Wächter, Schmutzfänger, Umwälzpumpen, Druckausdehnungsgefäße, Nachspeiseeinrichtungen, Hydrauliche Weichen etc. | Q127: 2.232973422 | R127: 184.0151313 | S127: 120.4 | T127: 268.85 | U127: =R127*(((160.2-117.2)/100)+1) -> 263.1416377
A128: 422 | B128: Wärmeverteilnetze | C128: 422 | D128: Wärmeverteilnetz inkl. Pumpen, Verteiler und Rohrleitungen | E128: 01 | F128: Wärmeverteilnetz | G128: 01 | H128: Heizungsverteiler | I128: 154 | J128: Anzahl Kreise 10 bis 20 | K128: 03 | L128: Nennweite Zuleitung Verteiler <100DN | M128: 01 | N128: pauschal | O128: 422.01.01.154.03.01 | P128: inkl. Entleerungen, Thermometer, Manometer, Armaturen, Ventile, Klappen, Wächter, Schmutzfänger, Umwälzpumpen, Druckausdehnungsgefäße, Nachspeiseeinrichtungen, Hydrauliche Weichen etc. | Q128: 2.130918767 | R128: 236.6974588 | S128: 151.2 | T128: 322.1949176 | U128: =R128*(((160.2-117.2)/100)+1) -> 338.4773661
A129: 422 | B129: Wärmeverteilnetze | C129: 422 | D129: Wärmeverteilnetz inkl. Pumpen, Verteiler und Rohrleitungen | E129: 01 | F129: Wärmeverteilnetz | G129: 01 | H129: Heizungsverteiler | I129: 154 | J129: Anzahl Kreise 1 bis 5 | K129: 01 | L129: Nennweite Zuleitung Verteiler > 100DN bis 200DN | M129: 02 | N129: pauschal | O129: 422.01.01.154.01.02 | P129: inkl. Entleerungen, Thermometer, Manometer, Armaturen, Ventile, Klappen, Wächter, Schmutzfänger, Umwälzpumpen, Druckausdehnungsgefäße, Nachspeiseeinrichtungen, Hydrauliche Weichen etc. | Q129: 1.550048098 | R129: 122.2238053 | S129: 95.86 | T129: 148.5876107 | U129: =R129*(((160.2-117.2)/100)+1) -> 174.7800416
A130: 422 | B130: Wärmeverteilnetze | C130: 422 | D130: Wärmeverteilnetz inkl. Pumpen, Verteiler und Rohrleitungen | E130: 01 | F130: Wärmeverteilnetz | G130: 01 | H130: Heizungsverteiler | I130: 154 | J130: Anzahl Kreise 6 bis 10 | K130: 02 | L130: Nennweite Zuleitung Verteiler > 100DN bis 200DN | M130: 02 | N130: pauschal | O130: 422.01.01.154.02.02 | P130: inkl. Entleerungen, Thermometer, Manometer, Armaturen, Ventile, Klappen, Wächter, Schmutzfänger, Umwälzpumpen, Druckausdehnungsgefäße, Nachspeiseeinrichtungen, Hydrauliche Weichen etc. | Q130: 1.702447688 | R130: 162.6873508 | S130: 120.4 | T130: 204.9747017 | U130: =R130*(((160.2-117.2)/100)+1) -> 232.6429117
A131: 422 | B131: Wärmeverteilnetze | C131: 422 | D131: Wärmeverteilnetz inkl. Pumpen, Verteiler und Rohrleitungen | E131: 01 | F131: Wärmeverteilnetz | G131: 01 | H131: Heizungsverteiler | I131: 154 | J131: Anzahl Kreise 10 bis 20 | K131: 03 | L131: Nennweite Zuleitung Verteiler > 100DN bis 200DN | M131: 02 | N131: pauschal | O131: 422.01.01.154.03.02 | P131: inkl. Entleerungen, Thermometer, Manometer, Armaturen, Ventile, Klappen, Wächter, Schmutzfänger, Umwälzpumpen, Druckausdehnungsgefäße, Nachspeiseeinrichtungen, Hydrauliche Weichen etc. | Q131: 2.107109691 | R131: 234.8974926 | S131: 151.2 | T131: 318.5949852 | U131: =R131*(((160.2-117.2)/100)+1) -> 335.9034144
A132: 422 | B132: Wärmeverteilnetze | C132: 422 | D132: Wärmeverteilnetz inkl. Pumpen, Verteiler und Rohrleitungen | E132: 01 | F132: Wärmeverteilnetz | G132: 01 | H132: Entgasungsstation | I132: 013 | K132: 00 | L132: Anlagenvolumen bis 100 m3 Arbeitsdruck bis 4,5 bar | M132: 01 | N132: Anzahl | O132: 422.01.01.013.00.01 | P132: inkl. Absperrungen | Q132: 1.159148714 | R132: 104.8590573 | S132: 97.13 | T132: 112.5881146 | U132: =R132*(((160.2-117.2)/100)+1) -> 149.9484519
A133: 422 | B133: Wärmeverteilnetze | C133: 422 | D133: Wärmeverteilnetz inkl. Pumpen, Verteiler und Rohrleitungen | E133: 01 | F133: Wärmeverteilnetz | G133: 01 | H133: Wärmetauscher | I133: 005 | J133: Plattenwärmetauscher | K133: 01 | L133: Nennleistung <= 50 kW | M133: 01 | N133: Anzahl | O133: 422.01.01.005.01.01 | P133: inkl. Absperrungen | Q133: 1.51210851 | R133: 85.38232314 | S133: 67.97662029 | T133: 102.788026 | U133: =R133*(((160.2-117.2)/100)+1) -> 122.0967221
A134: 422 | B134: Wärmeverteilnetze | C134: 422 | D134: Wärmeverteilnetz inkl. Pumpen, Verteiler und Rohrleitungen | E134: 01 | F134: Wärmeverteilnetz | G134: 01 | H134: Wärmetauscher | I134: 005 | J134: Plattenwärmetauscher | K134: 01 | L134: Nennleistung > 50 bis 150 kW | M134: 02 | N134: Anzahl | O134: 422.01.01.005.01.02 | P134: inkl. Absperrungen | Q134: 2.447448897 | R134: 113.7363451 | S134: 65.98290417 | T134: 161.489786 | U134: =R134*(((160.2-117.2)/100)+1) -> 162.6429735
A135: 422 | B135: Wärmeverteilnetze | C135: 422 | D135: Wärmeverteilnetz inkl. Pumpen, Verteiler und Rohrleitungen | E135: 01 | F135: Wärmeverteilnetz | G135: 01 | H135: Wärmetauscher | I135: 005 | J135: Plattenwärmetauscher | K135: 01 | L135: Nennleistung > 150 bis 300 kW | M135: 03 | N135: Anzahl | O135: 422.01.01.005.01.03 | P135: inkl. Absperrungen | Q135: 1.692057838 | R135: 137.1246239 | S135: 101.8734605 | T135: 172.3757873 | U135: =R135*(((160.2-117.2)/100)+1) -> 196.0882122
A136: 422 | B136: Wärmeverteilnetze | C136: 422 | D136: Wärmeverteilnetz inkl. Pumpen, Verteiler und Rohrleitungen | E136: 01 | F136: Wärmeverteilnetz | G136: 01 | H136: Wärmetauscher | I136: 005 | J136: Plattenwärmetauscher | K136: 01 | L136: Nennleistung > 300 bis 500 kW | M136: 04 | N136: Anzahl | O136: 422.01.01.005.01.04 | P136: inkl. Absperrungen | Q136: 2.139174891 | R136: 185.8959336 | S136: 118.4361751 | T136: 253.355692 | U136: =R136*(((160.2-117.2)/100)+1) -> 265.831185
A137: 422 | B137: Wärmeverteilnetze | C137: 422 | D137: Wärmeverteilnetz inkl. Pumpen, Verteiler und Rohrleitungen | E137: 01 | F137: Wärmeverteilnetz | G137: 01 | H137: Wärmetauscher | I137: 005 | J137: Plattenwärmetauscher | K137: 01 | L137: Nennleistung > 500 bis 1.000 kW | M137: 05 | N137: Anzahl | O137: 422.01.01.005.01.05 | P137: inkl. Absperrungen | Q137: 1.716958448 | R137: 234.4040305 | S137: 172.548852 | T137: 296.259209 | U137: =R137*(((160.2-117.2)/100)+1) -> 335.1977636
A138: 422 | B138: Wärmeverteilnetze | C138: 422 | D138: Wärmeverteilnetz inkl. Pumpen, Verteiler und Rohrleitungen | E138: 01 | F138: Wärmeverteilnetz | G138: 01 | H138: Wärmetauscher | I138: 005 | J138: Plattenwärmetauscher | K138: 01 | L138: Nennleistung > 1.000 bis 2.000 kW | M138: 06 | N138: Anzahl | O138: 422.01.01.005.01.06 | P138: inkl. Absperrungen | Q138: 1.596125551 | R138: 281.4589574 | S138: 216.8300044 | T138: 346.0879104 | U138: =R138*(((160.2-117.2)/100)+1) -> 402.4863091
A139: 422 | B139: Wärmeverteilnetze | C139: 422 | D139: Wärmeverteilnetz inkl. Pumpen, Verteiler und Rohrleitungen | E139: 01 | F139: Wärmeverteilnetz | G139: 01 | H139: Wärmetauscher | I139: 005 | J139: Rohrbündelwärmetauscher | K139: 02 | L139: Nennleistung <= 50 kW | M139: 01 | N139: Anzahl | O139: 422.01.01.005.02.01 | P139: inkl. Absperrungen | Q139: 1.287527329 | R139: 91.31084571 | S139: 79.83366542 | T139: 102.788026 | U139: =R139*(((160.2-117.2)/100)+1) -> 130.5745094
A140: 422 | B140: Wärmeverteilnetze | C140: 422 | D140: Wärmeverteilnetz inkl. Pumpen, Verteiler und Rohrleitungen | E140: 01 | F140: Wärmeverteilnetz | G140: 01 | H140: Wärmetauscher | I140: 005 | J140: Rohrbündelwärmetauscher | K140: 02 | L140: Nennleistung > 50 bis 150 kW | M140: 02 | N140: Anzahl | O140: 422.01.01.005.02.02 | P140: inkl. Absperrungen | Q140: 2.016694679 | R140: 120.7831268 | S140: 80.07646752 | T140: 161.489786 | U140: =R140*(((160.2-117.2)/100)+1) -> 172.7198713
A141: 422 | B141: Wärmeverteilnetze | C141: 422 | D141: Wärmeverteilnetz inkl. Pumpen, Verteiler und Rohrleitungen | E141: 01 | F141: Wärmeverteilnetz | G141: 01 | H141: Wärmetauscher | I141: 005 | J141: Rohrbündelwärmetauscher | K141: 02 | L141: Nennleistung > 150 bis 300 kW | M141: 03 | N141: Anzahl | O141: 422.01.01.005.02.03 | P141: inkl. Absperrungen | Q141: 1.646482497 | R141: 138.5345744 | S141: 104.6933615 | T141: 172.3757873 | U141: =R141*(((160.2-117.2)/100)+1) -> 198.1044414
A142: 422 | B142: Wärmeverteilnetze | C142: 422 | D142: Wärmeverteilnetz inkl. Pumpen, Verteiler und Rohrleitungen | E142: 01 | F142: Wärmeverteilnetz | G142: 01 | H142: Wärmetauscher | I142: 005 | J142: Rohrbündelwärmetauscher | K142: 02 | L142: Nennleistung > 300 bis 500 kW | M142: 04 | N142: Anzahl | O142: 422.01.01.005.02.04 | P142: inkl. Absperrungen | Q142: 1.988294643 | R142: 190.3896537 | S142: 127.4236155 | T142: 253.355692 | U142: =R142*(((160.2-117.2)/100)+1) -> 272.2572048
A143: 422 | B143: Wärmeverteilnetze | C143: 422 | D143: Wärmeverteilnetz inkl. Pumpen, Verteiler und Rohrleitungen | E143: 01 | F143: Wärmeverteilnetz | G143: 01 | H143: Wärmetauscher | I143: 005 | J143: Rohrbündelwärmetauscher | K143: 02 | L143: Nennleistung > 500 bis 1.000 kW | M143: 05 | N143: Anzahl | O143: 422.01.01.005.02.05 | P143: inkl. Absperrungen | Q143: 1.673462265 | R143: 236.6464522 | S143: 177.0336955 | T143: 296.259209 | U143: =R143*(((160.2-117.2)/100)+1) -> 338.4044267
A144: 422 | B144: Wärmeverteilnetze | C144: 422 | D144: Wärmeverteilnetz inkl. Pumpen, Verteiler und Rohrleitungen | E144: 01 | F144: Wärmeverteilnetz | G144: 01 | H144: Wärmetauscher | I144: 005 | J144: Rohrbündelwärmetauscher | K144: 02 | L144: Nennleistung > 1.000 bis 2.000 kW | M144: 06 | N144: Anzahl | O144: 422.01.01.005.02.06 | P144: inkl. Absperrungen | Q144: 1.429914618 | R144: 294.0609398 | S144: 242.0339691 | T144: 346.0879104 | U144: =R144*(((160.2-117.2)/100)+1) -> 420.5071439
A145: 422 | B145: Wärmeverteilnetze | C145: 422 | D145: Wärmeverteilnetz inkl. Pumpen, Verteiler und Rohrleitungen | E145: 01 | F145: Druckhaltesystem mit Fremddruckerzeugung | G145: 02 | I145: 000 | K145: 00 | L145: Volumen <= 300 Liter | M145: 01 | N145: Anzahl | O145: 422.01.02.000.00.01 | P145: Pumpen / Kompressoren | Q145: 2.24819083 | R145: 163.5787003 | S145: 100.7198831 | T145: 226.4375175 | U145: =R145*(((160.2-117.2)/100)+1) -> 233.9175414
A146: 422 | B146: Wärmeverteilnetze | C146: 422 | D146: Wärmeverteilnetz inkl. Pumpen, Verteiler und Rohrleitungen | E146: 01 | F146: Druckhaltesystem mit Fremddruckerzeugung | G146: 02 | I146: 000 | K146: 00 | L146: Volumen > 300 bis 1.000 Liter | M146: 02 | N146: Anzahl | O146: 422.01.02.000.00.02 | P146: Pumpen / Kompressoren | Q146: 2.010299619 | R146: 199.9594484 | S146: 132.8501968 | T146: 267.0687 | U146: =R146*(((160.2-117.2)/100)+1) -> 285.9420112
A147: 422 | B147: Wärmeverteilnetze | C147: 422 | D147: Wärmeverteilnetz inkl. Pumpen, Verteiler und Rohrleitungen | E147: 01 | F147: Druckhaltesystem mit Fremddruckerzeugung | G147: 02 | I147: 000 | K147: 00 | L147: Volumen > 1.000 bis 5.000 Liter | M147: 03 | N147: Anzahl | O147: 422.01.02.000.00.03 | P147: Pumpen / Kompressoren | Q147: 1.231866995 | R147: 276.2986271 | S147: 247.5941691 | T147: 305.003085 | U147: =R147*(((160.2-117.2)/100)+1) -> 395.1070367
A148: 423 | B148: Raumheizflächen | C148: 423 | D148: Flächenheizsysteme | E148: 02 | F148: Wand- / Decken -/ Fußbodenheizung - Verteiler | G148: 02 | I148: 000 | K148: 00 | L148: Anzahl Kreise 1 bis 10 | M148: 01 | N148: pauschal | O148: 423.02.02.000.00.01 | Q148: 1.86588127 | R148: 46.46148802 | S148: 32.423875 | T148: 60.49910105 | U148: =R148*(((160.2-117.2)/100)+1) -> 66.43992788
A149: 423 | B149: Raumheizflächen | C149: 423 | D149: Flächenheizsysteme | E149: 02 | F149: Wand- / Decken -/ Fußbodenheizung - Verteiler | G149: 02 | I149: 000 | K149: 00 | L149: Anzahl Kreise 10 bis 20 | M149: 02 | N149: pauschal | O149: 423.02.02.000.00.02 | Q149: 2.55602933 | R149: 97.7330211 | S149: 54.9675 | T149: 140.4985422 | U149: =R149*(((160.2-117.2)/100)+1) -> 139.7582202
A150: 423 | B150: Raumheizflächen | C150: 423 | D150: Flächenheizsysteme | E150: 02 | F150: Wand- / Decken -/ Fußbodenheizung - Verteiler | G150: 02 | I150: 000 | K150: 00 | L150: Anzahl Kreise 20 bis 40 | M150: 03 | N150: pauschal | O150: 423.02.02.000.00.03 | Q150: 2.766669045 | R150: 176.2623542 | S150: 93.59057143 | T150: 258.9341369 | U150: =R150*(((160.2-117.2)/100)+1) -> 252.0551664
A151: 429 | B151: Sonstiges zur KG 420 | C151: 429 | D151: Rampenheizung | E151: 01 | F151: Rampenheizung (wassergeführt) | G151: 01 | I151: 000 | K151: 00 | L151: Norm-Wärmeleistung <= 50 kW | M151: 01 | N151: Anzahl | O151: 429.01.01.000.00.01 | Q151: 1.223971351 | R151: 34.98306935 | S151: 31.46 | T151: 38.5061387 | U151: =R151*(((160.2-117.2)/100)+1) -> 50.02578917
A152: 429 | B152: Sonstiges zur KG 420 | C152: 429 | D152: Rampenheizung | E152: 01 | F152: Rampenheizung (wassergeführt) | G152: 01 | I152: 000 | K152: 00 | L152: Norm-Wärmeleistung > 50 bis 150 kW | M152: 02 | N152: Anzahl | O152: 429.01.01.000.00.02 | Q152: 2.295269045 | R152: 60.15602134 | S152: 33.08 | T152: 75.9275 | U152: =R152*(((160.2-117.2)/100)+1) -> 86.02311052
A153: 431 | B153: Lüftungsanlagen | C153: 431 | D153: Abluftanlagen (mit bis zu einer LBF) | E153: 01 | F153: Abluftanlage | G153: 01 | I153: 000 | K153: 00 | L153: Abluft Volumenstrom <= 500 m3/h | M153: 01 | N153: Anzahl | O153: 431.01.01.000.00.01 | Q153: 1.581834734 | R153: 39.10623716 | S153: 32 | T153: 50.61871149 | U153: =R153*(((160.2-117.2)/100)+1) -> 55.92191914
A154: 431 | B154: Lüftungsanlagen | C154: 431 | D154: Abluftanlagen (mit bis zu einer LBF) | E154: 01 | F154: Abluftanlage | G154: 01 | I154: 000 | K154: 00 | L154: Abluft Volumenstrom > 500 bis 2.500 m3/h | M154: 02 | N154: Anzahl | O154: 431.01.01.000.00.02 | Q154: 1.572642373 | R154: 43.68145049 | S154: 35.63794225 | T154: 56.04573807 | U154: =R154*(((160.2-117.2)/100)+1) -> 62.46447419
A155: 431 | B155: Lüftungsanlagen | C155: 431 | D155: Abluftanlagen (mit bis zu einer LBF) | E155: 01 | F155: Abluftanlage | G155: 01 | I155: 000 | K155: 00 | L155: Abluft Volumenstrom > 2.500 bis 5.000 m3/h | M155: 03 | N155: Anzahl | O155: 431.01.01.000.00.03 | Q155: 1.557539681 | R155: 53.97568046 | S155: 43.82331231 | T155: 68.25654787 | U155: =R155*(((160.2-117.2)/100)+1) -> 77.18522306
A156: 431 | B156: Lüftungsanlagen | C156: 431 | D156: Abluftanlagen (mit bis zu einer LBF) | E156: 01 | F156: Abluftanlage | G156: 01 | I156: 000 | K156: 00 | L156: Abluft Volumenstrom > 5.000 bis 10.000 m3/h | M156: 04 | N156: Anzahl | O156: 431.01.01.000.00.04 | Q156: 1.541929504 | R156: 71.13273043 | S156: 57.46559574 | T156: 88.60789755 | U156: =R156*(((160.2-117.2)/100)+1) -> 101.7198045
A157: 431 | B157: Lüftungsanlagen | C157: 431 | D157: Abluftanlagen (mit bis zu einer LBF) | E157: 01 | F157: Abluftanlage | G157: 01 | I157: 000 | K157: 00 | L157: Abluft Volumenstrom > 10.000 bis 20.000 m3/h | M157: 05 | N157: Anzahl | O157: 431.01.01.000.00.05 | Q157: 1.525785827 | R157: 105.4468304 | S157: 84.7501626 | T157: 129.3105969 | U157: =R157*(((160.2-117.2)/100)+1) -> 150.7889674
A158: 431 | B158: Lüftungsanlagen | C158: 431 | D158: Abluftanlagen (mit bis zu einer LBF) | E158: 01 | F158: Abluftanlage | G158: 01 | I158: 000 | K158: 00 | L158: Abluft Volumenstrom > 20.000 bis 30.000 m3/h | M158: 06 | N158: Anzahl | O158: 431.01.01.000.00.06 | Q158: 1.515574107 | R158: 151.1989636 | S158: 121.1295851 | T158: 183.5808627 | U158: =R158*(((160.2-117.2)/100)+1) -> 216.2145179
A159: 431 | B159: Lüftungsanlagen | C159: 431 | D159: Abluftanlagen (mit bis zu einer LBF) | E159: 01 | F159: Abluftanlage | G159: 01 | I159: 000 | K159: 00 | L159: Abluft Volumenstrom > 30.000 bis 50.000 m3/h | M159: 07 | N159: Anzahl | O159: 431.01.01.000.00.07 | Q159: 1.508185508 | R159: 219.8271634 | S159: 175.6987188 | T159: 264.9862614 | U159: =R159*(((160.2-117.2)/100)+1) -> 314.3528437
A160: 431 | B160: Lüftungsanlagen | C160: 431 | D160: Abluftanlagen (mit bis zu einer LBF) | E160: 01 | F160: Abluftanlage | G160: 01 | I160: 000 | K160: 00 | L160: Abluft Volumenstrom > 50.000 bis 75.000 m3/h | M160: 08 | N160: Anzahl | O160: 431.01.01.000.00.08 | Q160: 1.502973105 | R160: 322.7694632 | S160: 257.5524194 | T160: 387.0943595 | U160: =R160*(((160.2-117.2)/100)+1) -> 461.5603324
A161: 431 | B161: Lüftungsanlagen | C161: 431 | D161: Abluftanlagen (mit bis zu einer LBF) | E161: 01 | F161: Abluftanlage | G161: 01 | I161: 000 | K161: 00 | L161: Abluft Volumenstrom > 75.000 bis 100.000 m3/h | M161: 09 | N161: Anzahl | O161: 431.01.01.000.00.09 | Q161: 1.500053258 | R161: 437.1497963 | S161: 348.5009756 | T161: 522.770024 | U161: =R161*(((160.2-117.2)/100)+1) -> 625.1242087
A162: 431 | B162: Lüftungsanlagen | C162: 431 | D162: Zuluftanlagen (mit bis zu einer LBF) | E162: 02 | F162: Zuluftanlage | G162: 01 | I162: 000 | K162: 00 | L162: Zuluft Volumenstrom <= 500 m3/h | M162: 01 | N162: Anzahl | O162: 431.02.01.000.00.01 | Q162: 2.236037219 | R162: 79.9323446 | S162: 51.42 | T162: 114.9770338 | U162: =R162*(((160.2-117.2)/100)+1) -> 114.3032528
A163: 431 | B163: Lüftungsanlagen | C163: 431 | D163: Zuluftanlagen (mit bis zu einer LBF) | E163: 02 | F163: Zuluftanlage | G163: 01 | I163: 000 | K163: 00 | L163: Zuluft Volumenstrom > 500 bis 2.500 m3/h | M163: 02 | N163: Anzahl | O163: 431.02.01.000.00.02 | Q163: 2.257631439 | R163: 90.72373457 | S163: 57.53348255 | T163: 129.889399 | U163: =R163*(((160.2-117.2)/100)+1) -> 129.7349404
A164: 431 | B164: Lüftungsanlagen | C164: 431 | D164: Zuluftanlagen (mit bis zu einer LBF) | E164: 02 | F164: Zuluftanlage | G164: 01 | I164: 000 | K164: 00 | L164: Zuluft Volumenstrom > 2.500 bis 5.000 m3/h | M164: 03 | N164: Anzahl | O164: 431.02.01.000.00.03 | Q164: 2.292676813 | R164: 115.004362 | S164: 71.28881829 | T164: 163.4422207 | U164: =R164*(((160.2-117.2)/100)+1) -> 164.4562377
A165: 431 | B165: Lüftungsanlagen | C165: 431 | D165: Zuluftanlagen (mit bis zu einer LBF) | E165: 02 | F165: Zuluftanlage | G165: 01 | I165: 000 | K165: 00 | L165: Zuluft Volumenstrom > 5.000 bis 10.000 m3/h | M165: 04 | N165: Anzahl | O165: 431.02.01.000.00.04 | Q165: 2.328345155 | R165: 155.4720744 | S165: 94.21437785 | T165: 219.3635902 | U165: =R165*(((160.2-117.2)/100)+1) -> 222.3250664
A166: 431 | B166: Lüftungsanlagen | C166: 431 | D166: Zuluftanlagen (mit bis zu einer LBF) | E166: 02 | F166: Zuluftanlage | G166: 01 | I166: 000 | K166: 00 | L166: Zuluft Volumenstrom > 10.000 bis 20.000 m3/h | M166: 05 | N166: Anzahl | O166: 431.02.01.000.00.05 | Q166: 2.364653226 | R166: 236.4074991 | S166: 140.065497 | T166: 331.2063292 | U166: =R166*(((160.2-117.2)/100)+1) -> 338.0627237
A167: 431 | B167: Lüftungsanlagen | C167: 431 | D167: Zuluftanlagen (mit bis zu einer LBF) | E167: 02 | F167: Zuluftanlage | G167: 01 | I167: 000 | K167: 00 | L167: Zuluft Volumenstrom > 20.000 bis 30.000 m3/h | M167: 06 | N167: Anzahl | O167: 431.02.01.000.00.06 | Q167: 2.387322124 | R167: 344.3213988 | S167: 201.2003225 | T167: 480.3299813 | U167: =R167*(((160.2-117.2)/100)+1) -> 492.3796003
A168: 431 | B168: Lüftungsanlagen | C168: 431 | D168: Zuluftanlagen (mit bis zu einer LBF) | E168: 02 | F168: Zuluftanlage | G168: 01 | I168: 000 | K168: 00 | L168: Zuluft Volumenstrom > 30.000 bis 50.000 m3/h | M168: 07 | N168: Anzahl | O168: 431.02.01.000.00.07 | Q168: 2.403582466 | R168: 506.1922483 | S168: 292.9025607 | T168: 704.0154593 | U168: =R168*(((160.2-117.2)/100)+1) -> 723.8549151
A169: 431 | B169: Lüftungsanlagen | C169: 431 | D169: Zuluftanlagen (mit bis zu einer LBF) | E169: 02 | F169: Zuluftanlage | G169: 01 | I169: 000 | K169: 00 | L169: Zuluft Volumenstrom > 50.000 bis 75.000 m3/h | M169: 08 | N169: Anzahl | O169: 431.02.01.000.00.08 | Q169: 2.414982888 | R169: 748.9985225 | S169: 430.4559181 | T169: 1039.543676 | U169: =R169*(((160.2-117.2)/100)+1) -> 1071.067887
A170: 431 | B170: Lüftungsanlagen | C170: 431 | D170: Zuluftanlagen (mit bis zu einer LBF) | E170: 02 | F170: Zuluftanlage | G170: 01 | I170: 000 | K170: 00 | L170: Zuluft Volumenstrom > 75.000 bis 100.000 m3/h | M170: 09 | N170: Anzahl | O170: 431.02.01.000.00.09 | Q170: 2.421343733 | R170: 1018.783272 | S170: 583.2929819 | T170: 1412.352806 | U170: =R170*(((160.2-117.2)/100)+1) -> 1456.860079
A171: 431 | B171: Lüftungsanlagen | C171: 431 | D171: Zu- und Abluftanlagen (mit bis zur einer LBF) | E171: 03 | F171: Zu- und Abluftanlage | G171: 01 | I171: 000 | J171: mit WRG | K171: 01 | L171: Volumenstrom <= 500 m3/h | M171: 01 | N171: Anzahl | O171: 431.03.01.000.01.01 | Q171: 2.358693068 | R171: 133.3904952 | S171: 79.43 | T171: 187.3509904 | U171: =R171*(((160.2-117.2)/100)+1) -> 190.7484081
A172: 431 | B172: Lüftungsanlagen | C172: 431 | D172: Zu- und Abluftanlagen (mit bis zur einer LBF) | E172: 03 | F172: Zu- und Abluftanlage | G172: 01 | I172: 000 | J172: mit WRG | K172: 01 | L172: Volumenstrom > 500 bis 2.500 m3/h | M172: 02 | N172: Anzahl | O172: 431.03.01.000.01.02 | Q172: 2.33893237 | R172: 146.9369033 | S172: 88.01430336 | T172: 205.8595032 | U172: =R172*(((160.2-117.2)/100)+1) -> 210.1197717
A173: 431 | B173: Lüftungsanlagen | C173: 431 | D173: Zu- und Abluftanlagen (mit bis zur einer LBF) | E173: 03 | F173: Zu- und Abluftanlage | G173: 01 | I173: 000 | J173: mit WRG | K173: 01 | L173: Volumenstrom > 2.500 bis 5.000 m3/h | M173: 03 | N173: Anzahl | O173: 431.03.01.000.01.03 | Q173: 2.306028095 | R173: 177.4163214 | S173: 107.3289859 | T173: 247.5036569 | U173: =R173*(((160.2-117.2)/100)+1) -> 253.7053396
A174: 431 | B174: Lüftungsanlagen | C174: 431 | D174: Zu- und Abluftanlagen (mit bis zur einer LBF) | E174: 03 | F174: Zu- und Abluftanlage | G174: 01 | I174: 000 | J174: mit WRG | K174: 01 | L174: Volumenstrom > 5.000 bis 10.000 m3/h | M174: 04 | N174: Anzahl | O174: 431.03.01.000.01.04 | Q174: 2.271432765 | R174: 228.2153517 | S174: 139.5201235 | T174: 316.9105799 | U174: =R174*(((160.2-117.2)/100)+1) -> 326.3479529
A175: 431 | B175: Lüftungsanlagen | C175: 431 | D175: Zu- und Abluftanlagen (mit bis zur einer LBF) | E175: 03 | F175: Zu- und Abluftanlage | G175: 01 | I175: 000 | J175: mit WRG | K175: 01 | L175: Volumenstrom > 10.000 bis 20.000 m3/h | M175: 05 | N175: Anzahl | O175: 431.03.01.000.01.05 | Q175: 2.235012578 | R175: 329.8134122 | S175: 203.9023987 | T175: 455.7244258 | U175: =R175*(((160.2-117.2)/100)+1) -> 471.6331795
A176: 431 | B176: Lüftungsanlagen | C176: 431 | D176: Zu- und Abluftanlagen (mit bis zur einer LBF) | E176: 03 | F176: Zu- und Abluftanlage | G176: 01 | I176: 000 | J176: mit WRG | K176: 01 | L176: Volumenstrom > 20.000 bis 30.000 m3/h | M176: 06 | N176: Anzahl | O176: 431.03.01.000.01.06 | Q176: 2.211629528 | R176: 465.2774929 | S176: 289.7454322 | T176: 640.8095536 | U176: =R176*(((160.2-117.2)/100)+1) -> 665.3468149
A177: 431 | B177: Lüftungsanlagen | C177: 431 | D177: Zu- und Abluftanlagen (mit bis zur einer LBF) | E177: 03 | F177: Zu- und Abluftanlage | G177: 01 | I177: 000 | J177: mit WRG | K177: 01 | L177: Volumenstrom > 30.000 bis 50.000 m3/h | M177: 07 | N177: Anzahl | O177: 431.03.01.000.01.07 | Q177: 2.194540832 | R177: 668.473614 | S177: 418.5099826 | T177: 918.4372454 | U177: =R177*(((160.2-117.2)/100)+1) -> 955.917268
A178: 431 | B178: Lüftungsanlagen | C178: 431 | D178: Zu- und Abluftanlagen (mit bis zur einer LBF) | E178: 03 | F178: Zu- und Abluftanlage | G178: 01 | I178: 000 | J178: mit WRG | K178: 01 | L178: Volumenstrom > 50.000 bis 75.000 m3/h | M178: 08 | N178: Anzahl | O178: 431.03.01.000.01.08 | Q178: 2.182398308 | R178: 973.2677955 | S178: 611.6568081 | T178: 1334.878783 | U178: =R178*(((160.2-117.2)/100)+1) -> 1391.772948
A179: 431 | B179: Lüftungsanlagen | C179: 431 | D179: Zu- und Abluftanlagen (mit bis zur einer LBF) | E179: 03 | F179: Zu- und Abluftanlage | G179: 01 | I179: 000 | J179: mit WRG | K179: 01 | L179: Volumenstrom > 75.000 bis 100.000 m3/h | M179: 09 | N179: Anzahl | O179: 431.03.01.000.01.09 | Q179: 2.17556465 | R179: 1311.927997 | S179: 826.2643919 | T179: 1797.591603 | U179: =R179*(((160.2-117.2)/100)+1) -> 1876.057036
A180: 431 | B180: Lüftungsanlagen | C180: 431 | D180: Zu- und Abluftanlagen (mit bis zur einer LBF) | E180: 03 | F180: Zu- und Abluftanlage | G180: 01 | I180: 000 | J180: ohne WRG | K180: 02 | L180: Volumenstrom <= 500 m3/h | M180: 01 | N180: Anzahl | O180: 431.03.01.000.02.01 | Q180: 1.419405797 | R180: 244.4999281 | S180: 202.1156835 | T180: 286.8841727 | U180: =R180*(((160.2-117.2)/100)+1) -> 349.6348971
A181: 431 | B181: Lüftungsanlagen | C181: 431 | D181: Zu- und Abluftanlagen (mit bis zur einer LBF) | E181: 03 | F181: Zu- und Abluftanlage | G181: 01 | I181: 000 | J181: ohne WRG | K181: 02 | L181: Volumenstrom > 500 bis 2.500 m3/h | M181: 02 | N181: Anzahl | O181: 431.03.01.000.02.02 | Q181: 1.440822345 | R181: 262.1088489 | S181: 214.7709353 | T181: 309.4467626 | U181: =R181*(((160.2-117.2)/100)+1) -> 374.815654
A182: 431 | B182: Lüftungsanlagen | C182: 431 | D182: Zu- und Abluftanlagen (mit bis zur einer LBF) | E182: 03 | F182: Zu- und Abluftanlage | G182: 01 | I182: 000 | J182: ohne WRG | K182: 02 | L182: Volumenstrom > 2.500 bis 5.000 m3/h | M182: 03 | N182: Anzahl | O182: 431.03.01.000.02.03 | Q182: 1.480861753 | R182: 301.7289209 | S182: 243.2452518 | T182: 360.2125899 | U182: =R182*(((160.2-117.2)/100)+1) -> 431.4723568
A183: 431 | B183: Lüftungsanlagen | C183: 431 | D183: Zu- und Abluftanlagen (mit bis zur einer LBF) | E183: 03 | F183: Zu- und Abluftanlage | G183: 01 | I183: 000 | J183: ohne WRG | K183: 02 | L183: Volumenstrom > 5.000 bis 10.000 m3/h | M183: 04 | N183: Anzahl | O183: 431.03.01.000.02.04 | Q183: 1.530163603 | R183: 367.7623741 | S183: 290.702446 | T183: 444.8223022 | U183: =R183*(((160.2-117.2)/100)+1) -> 525.900195
A184: 431 | B184: Lüftungsanlagen | C184: 431 | D184: Zu- und Abluftanlagen (mit bis zur einer LBF) | E184: 03 | F184: Zu- und Abluftanlage | G184: 01 | I184: 000 | J184: ohne WRG | K184: 02 | L184: Volumenstrom > 10.000 bis 20.000 m3/h | M184: 05 | N184: Anzahl | O184: 431.03.01.000.02.05 | Q184: 1.592362344 | R184: 499.8292806 | S184: 385.6168345 | T184: 614.0417266 | U184: =R184*(((160.2-117.2)/100)+1) -> 714.7558712
A185: 431 | B185: Lüftungsanlagen | C185: 431 | D185: Zu- und Abluftanlagen (mit bis zur einer LBF) | E185: 03 | F185: Zu- und Abluftanlage | G185: 01 | I185: 000 | J185: ohne WRG | K185: 02 | L185: Volumenstrom > 20.000 bis 30.000 m3/h | M185: 06 | N185: Anzahl | O185: 431.03.01.000.02.06 | Q185: 1.639433562 | R185: 675.9184892 | S185: 512.1693525 | T185: 839.6676259 | U185: =R185*(((160.2-117.2)/100)+1) -> 966.5634396
A186: 431 | B186: Lüftungsanlagen | C186: 431 | D186: Zu- und Abluftanlagen (mit bis zur einer LBF) | E186: 03 | F186: Zu- und Abluftanlage | G186: 01 | I186: 000 | J186: ohne WRG | K186: 02 | L186: Volumenstrom > 30.000 bis 50.000 m3/h | M186: 07 | N186: Anzahl | O186: 431.03.01.000.02.07 | Q186: 1.678218823 | R186: 940.0523022 | S186: 701.9981295 | T186: 1178.106475 | U186: =R186*(((160.2-117.2)/100)+1) -> 1344.274792
A187: 431 | B187: Lüftungsanlagen | C187: 431 | D187: Zu- und Abluftanlagen (mit bis zur einer LBF) | E187: 03 | F187: Zu- und Abluftanlage | G187: 01 | I187: 000 | J187: ohne WRG | K187: 02 | L187: Volumenstrom > 50.000 bis 75.000 m3/h | M187: 08 | N187: Anzahl | O187: 431.03.01.000.02.08 | Q187: 1.708416134 | R187: 1336.253022 | S187: 986.741295 | T187: 1685.764748 | U187: =R187*(((160.2-117.2)/100)+1) -> 1910.841821
A188: 431 | B188: Lüftungsanlagen | C188: 431 | D188: Zu- und Abluftanlagen (mit bis zur einer LBF) | E188: 03 | F188: Zu- und Abluftanlage | G188: 01 | I188: 000 | J188: ohne WRG | K188: 02 | L188: Volumenstrom > 75.000 bis 100.000 m3/h | M188: 09 | N188: Anzahl | O188: 431.03.01.000.02.09 | Q188: 1.726491056 | R188: 1776.476043 | S188: 1303.12259 | T188: 2249.829496 | U188: =R188*(((160.2-117.2)/100)+1) -> 2540.360742
A189: 431 | B189: Lüftungsanlagen | C189: 431 | D189: Mechanische Entrauchungsanlagen (inkl. Nachströmöffnungen und Überströmeinrichtungen) | E189: 04 | F189: Maschinelle Rauch-/Wärmeabzuganlage (MRA) | G189: 01 | I189: 000 | K189: 00 | L189: Volumenstrom <= 25.000 m3/h | M189: 01 | N189: Anzahl | O189: 431.04.01.000.00.01 | Q189: 2.221201335 | R189: 177.219341 | S189: 115.1769121 | T189: 255.831111 | U189: =R189*(((160.2-117.2)/100)+1) -> 253.4236577
A190: 431 | B190: Lüftungsanlagen | C190: 431 | D190: Mechanische Entrauchungsanlagen (inkl. Nachströmöffnungen und Überströmeinrichtungen) | E190: 04 | F190: Maschinelle Rauch-/Wärmeabzuganlage (MRA) | G190: 01 | I190: 000 | K190: 00 | L190: Volumenstrom > 25.000 bis 50.000 m3/h | M190: 02 | N190: Anzahl | O190: 431.04.01.000.00.02 | Q190: 1.146432882 | R190: 189.1439278 | S190: 176.2402443 | T190: 202.0476113 | U190: =R190*(((160.2-117.2)/100)+1) -> 270.4758168
A191: 431 | B191: Lüftungsanlagen | C191: 431 | D191: Mechanische Entrauchungsanlagen (inkl. Nachströmöffnungen und Überströmeinrichtungen) | E191: 04 | F191: Maschinelle Rauch-/Wärmeabzuganlage (MRA) | G191: 01 | I191: 000 | K191: 00 | L191: Volumenstrom > 50.000 bis 100.000 m3/h | M191: 03 | N191: Anzahl | O191: 431.04.01.000.00.03 | Q191: 1.44150858 | R191: 238.5353883 | S191: 195.4 | T191: 281.6707766 | U191: =R191*(((160.2-117.2)/100)+1) -> 341.1056053
A192: 431 | B192: Lüftungsanlagen | C192: 431 | D192: Mechanische Entrauchungsanlagen (inkl. Nachströmöffnungen und Überströmeinrichtungen) | E192: 04 | F192: Jet-Ventilator | G192: 02 | I192: 000 | K192: 00 | L192: Volumenstrom <= 25.000 m3/h | M192: 01 | N192: Anzahl | O192: 431.04.02.000.00.01 | Q192: 2.352796046 | R192: 78.04170021 | S192: 52.95 | T192: 124.5805506 | U192: =R192*(((160.2-117.2)/100)+1) -> 111.5996313
A193: 431 | B193: Lüftungsanlagen | C193: 431 | D193: Mechanische Entrauchungsanlagen (inkl. Nachströmöffnungen und Überströmeinrichtungen) | E193: 04 | F193: Jet-Ventilator | G193: 02 | I193: 000 | K193: 00 | L193: Volumenstrom > 25.000 bis 50.000 m3/h | M193: 02 | N193: Anzahl | O193: 431.04.02.000.00.02 | Q193: 1.730497758 | R193: 131.4425198 | S193: 99.55238333 | T193: 172.2751762 | U193: =R193*(((160.2-117.2)/100)+1) -> 187.9628034
A194: 431 | B194: Lüftungsanlagen | C194: 431 | D194: Mechanische Entrauchungsanlagen (inkl. Nachströmöffnungen und Überströmeinrichtungen) | E194: 04 | F194: Jet-Ventilator | G194: 02 | I194: 000 | K194: 00 | L194: Volumenstrom > 50.000 bis 100.000 m3/h | M194: 03 | N194: Anzahl | O194: 431.04.02.000.00.03 | Q194: 1.612378171 | R194: 177.4193151 | S194: 135.8297333 | T194: 219.008897 | U194: =R194*(((160.2-117.2)/100)+1) -> 253.7096207
A195: 431 | B195: Lüftungsanlagen | C195: 431 | D195: Mechanische Entrauchungsanlagen (inkl. Nachströmöffnungen und Überströmeinrichtungen) | E195: 04 | F195: Rauchschutzdruckanlage (RDA) | G195: 03 | I195: 000 | K195: 00 | L195: Volumenstrom <= 25.000 m3/h | M195: 01 | N195: Anzahl | O195: 431.04.03.000.00.01 | Q195: 1.674185137 | R195: 219.3553921 | S195: 153.4 | T195: 256.82 | U195: =R195*(((160.2-117.2)/100)+1) -> 313.6782107
A196: 431 | B196: Lüftungsanlagen | C196: 431 | D196: Mechanische Entrauchungsanlagen (inkl. Nachströmöffnungen und Überströmeinrichtungen) | E196: 04 | F196: Rauchschutzdruckanlage (RDA) | G196: 03 | I196: 000 | K196: 00 | L196: Volumenstrom > 25.000 bis 50.000 m3/h | M196: 02 | N196: Anzahl | O196: 431.04.03.000.00.02 | Q196: 1.433983219 | R196: 300.4918143 | S196: 246.9136287 | T196: 354.07 | U196: =R196*(((160.2-117.2)/100)+1) -> 429.7032945
A197: 431 | B197: Lüftungsanlagen | C197: 431 | D197: Mechanische Entrauchungsanlagen (inkl. Nachströmöffnungen und Überströmeinrichtungen) | E197: 04 | F197: Rauchschutzdruckanlage (RDA) | G197: 03 | I197: 000 | K197: 00 | L197: Volumenstrom > 50.000 bis 100.000 m3/h | M197: 03 | N197: Anzahl | O197: 431.04.03.000.00.03 | Q197: 1.111519276 | R197: 378.6041329 | S197: 358.6082658 | T197: 398.6 | U197: =R197*(((160.2-117.2)/100)+1) -> 541.4039101
A198: 431 | B198: Lüftungsanlagen | C198: 431 | D198: Küchenabluftanlagen | E198: 05 | F198: Küchenabluftanlage | G198: 01 | I198: 000 | K198: 00 | L198: Abluft Volumenstrom <= 5.000 m3/h | M198: 01 | N198: Anzahl | O198: 431.05.01.000.00.01 | P198: ohne brandschutztechn. Reinigung, ohne Deckenreinigung / Reinigung der Wrasenfilter durch Küchendienstleister | Q198: 1.050762189 | R198: 132.0167235 | S198: 128.7489346 | T198: 135.2845123 | U198: =R198*(((160.2-117.2)/100)+1) -> 188.7839146
A199: 431 | B199: Lüftungsanlagen | C199: 431 | D199: Küchenabluftanlagen | E199: 05 | F199: Küchenabluftanlage | G199: 01 | I199: 000 | K199: 00 | L199: Abluft Volumenstrom > 5.000 bis 25.000 m3/h | M199: 02 | N199: Anzahl | O199: 431.05.01.000.00.02 | P199: ohne brandschutztechn. Reinigung, ohne Deckenreinigung / Reinigung der Wrasenfilter durch Küchendienstleister | Q199: 1.206751239 | R199: 245.7604803 | S199: 222.7351013 | T199: 268.7858594 | U199: =R199*(((160.2-117.2)/100)+1) -> 351.4374869
A200: 431 | B200: Lüftungsanlagen | C200: 431 | D200: Küchenabluftanlagen | E200: 05 | F200: Küchenabluftanlage | G200: 01 | I200: 000 | K200: 00 | L200: Abluft Volumenstrom > 25.000 bis 50.000 m3/h | M200: 03 | N200: Anzahl | O200: 431.05.01.000.00.03 | P200: ohne brandschutztechn. Reinigung, ohne Deckenreinigung / Reinigung der Wrasenfilter durch Küchendienstleister | Q200: 1.319017248 | R200: 347.1942718 | S200: 299.4322462 | T200: 394.9562974 | U200: =R200*(((160.2-117.2)/100)+1) -> 496.4878086
... 38 more rows
